Workbook

Sheet Instructivo
A1: CRITERIO DE PRIORIZACIÓN DE TRÁMITES ADMINISTRATIVOS
A2: Instructivo
A3: Consideraciones generales
A5: En las hojas “COSTO DE ADMINISTRACIÓN PÚBLICA”y “RESUMEN” para añadir más trámites y que apliquen las fórmulas, se deberá seleccionar la primera fila y copiarla una por cada trámite de la entidad
A7: Todas las hojas tienen columnas de color celeste, en las cuales NO deben ingresar valores ya que contienen fórmulas.
A8: Para la carga en GOB.EC. La institución debe recordar que el peso máximo del archivo es de 2 MB.
A9: Esquema de puntuación
A10: Para priorizar un trámite, se realizará un análisis de criterios básicos y adicionales basado en información que disponen las instituciones sujetas a esta norma técnica. Cada criterio será puntuado según los lineamientos presentes en esta norma.
A11: a) Demanda Anual
A12: Considerará el volumen o frecuencia de las solicitudes que ingresan al año a cada institución para la gestión de un trámite en particular.
A13: La identificación del volumen anual de los trámites se realizará a través de sus registros de transacciones y/o el número de visitas de consulta de información realizadas a través de páginas web institucionales.
A14: Para realizar el registro realice lo siguiente:
A15: 1.- Seleccione la hoja DEMANDA ANUAL
A16: 2.- Ingrese los trámites de la institución registrando el identificador y nombre en las columnas respectivas.
A17: 3.- Para cada trámite debe especificar en la columna DEMANDA ANUAL el volumen o frecuencia anual, de acuerdo a lo mencionado anteriormente.
A18: 4.- Una vez terminado el llenado solicitado presione el botón PUNTUACIÓN, se ordenara de menor a mayor.
A19: 5.- Usted visualizará el ordenamiento de los trámites ingresados de acuerdo al número de volumen o frecuencia anual.
A20: 6.- Así mismo, usted visualizará el puntaje obtenido en la columna PUNTUACIÓN de acuerdo al grupo obtenido por cada trámite de acuerdo al número de volumen o frecuencia anual cosiderando lo siguiente: ** Primer grupo (trámites con menor demanda no incluye los trámites con demanda 0 ) = 3 ** Segundo grupo (trámites con demanda intermedia) = 6 ** Tercer grupo (trámites con mayor demanda) = 10
A21: Cada vez que requiera actualizar el puntaje presionando el botón puntuación, debe verificar que la celda de la columna puntaje se encuentren vacías, es decir, se debe borrar cualquier valor de puntaje obtenido previamente.
A22: b) Volumen de quejas asociadas a un trámite:
A23: Considerará la cantidad de quejas recibidas en relación a un trámite durante un año. Estas quejas deberán estar documentadas en medios físicos y/o digitales.
A24: Para determinar la puntuación, se colocará en una tabla todos los trámites con sus correspondientes quejas ordenándose de menor a mayor. Se dividirá en 2 partes en los que cada grupo contenga la misma cantidad de trámites.
A25: Para realizar el registro realice lo siguiente:
A26: 1.- Seleccione la hoja VOLUMEN DE QUEJAS
A27: 2.- Ingrese los trámites de la institución registrando el identificador y nombre en las columnas respectivas. Si usted requiere de acuerdo al número de trámites copie filas adicionales que estén dentro del cuadro
A28: 3.- Para cada trámite debe especificar en la columna VOLUMEN QUEJAS el número de quejas anual, de acuerdo a lo mencionado anteriormente.
A29: 4.- Una vez terminado el llenado solicitado presione el botón PUNTUACIÓN.
A30: 5.- Usted visualizará el ordenamiento de los trámites ingresados de acuerdo al número de volumen o frecuencia anual.
A31: 6.- Así mismo, usted visualizará el puntaje obtenido en la columna PUNTUACIÓN de acuerdo al grupo obtenido por cada trámite de acuerdo al número de volumen o frecuencia anual cosiderando lo siguiente: La puntuación se basará en los siguientes grupos: ** Primer grupo (trámites con menor cantidad de quejas, no incluye los trámites con queja 0 ) = 4 ** Segundo grupo (trámites con mayor porcentaje de quejas) = 10
A32: El valor del volumen de quejas no debe ser superior al valor del volumen de la demana, no le permitirá registrar un valor.
A33: c) Costo para la administración pública:
A34: En cada trámite, basado en un caso estándar, se deberá estimar el costo incurrido en el costo de personal y recursos necesarios para su atención desde que el administrado entregó todos los requisitos hasta que la institución entregue el producto, respuesta o servicio requerido en el trámite. Se considerará:
A35: • Costo de personal:
A36: Costo del personal para atender el trámite, se excluyen actividades realizadas automáticamente o que dependen del administrado. El tiempo deberá considerar únicamente el tiempo efectivo de trabajo del personal, no debe considerar el tiempo de espera o de movimiento.
A37: • Costo de recursos:
A38: Se deberá considerar el costo directo en el que la institución debe incurrir para atender un trámite. Se debe considerar los insumos o materia prima necesaria u cualquier otro que la institución considere pertinente.
A39: Para realizar el registro realice lo siguiente:
A40: 1.- Seleccione la hoja COSTO ADMINISTRACIÓN PÚBLICA
A41: 2.- Ingrese los trámites de la institución registrando el identificador y nombre en las columnas respectivas. Si usted requiere de acuerdo al número de trámites copie filas adicionales que estén dentro del cuadro
A42: 3.- Para calcular el tiempo de las actividades, utilizar la hoja AUXILIAR COSTO ADMINISTRACIÓN donde deberá listar todas las actividades que realiza la institución en un caso estándar y asignar el tiempo mínimo que toma cada actvidad (en horas). El tiempo total de las actividades, deberá ingresar en la correspondiente celda de la hoja COSTO ADMINISTRACIÓN PÚBLICA
A43: 4.- En función de la información registrada en el paso 3, la matriz entregará el costo del personal
A44: 5.- Completar la columna "Costo recursos", en la cual ingresará el costo directo en el que incurre la institución para entregar el trámite. En este valor se considerarán los valores correspondientes a insumos y/o materia prima mínimos que se invierten por cada trámite (no se considera mano de obra)
A45: 6.- La columna "Costo para la adm. pública" mostrará el costto de este criterio para cada trámite
A46: 7,- Para que la fórmula funcione debe arrastrar hacia abajo al último de los támites ingresados, no copiar
A47: 7.- Una vez que disponga del Costo para la administración pública, presionar el botón "GENERAR".
A48: 8. Visualizar la hoja “RESUMEN DE COSTO AP” en la que va a encontrar copiada las celdas necesarias para el ordenamiento y puntuación de las mismas al presionar el botón “PUNTUACIÓN”
A50: d) Tiempo de respuesta:
A51: Considerará los tiempos que a las instituciones les toma dar respuesta a un trámite desde que reciben la solicitud del administrado hasta la finalización del mismo. Para la definición del tiempo se considerará un caso estándar.
A52: Para determinar la puntuación, se colocará en una tabla todos los trámites con el tiempo de respuesta, ordenándose de menor a mayor. Se dividirá en 4 grupos, en los que cada uno contenga la misma cantidad de trámites.
A53: Para realizar el registro realice lo siguiente:
A54: 1.- Seleccione la hoja TIEMPO DE RESPUESTA
A55: 2.- Ingrese los trámites de la institución registrando el identificador y nombre en las columnas respectivas. Si usted requiere de acuerdo al número de trámites copie filas adicionales que estén dentro del cuadro
A56: 3.- Para cada trámite debe especificar en la columna TIEMPO RESPUESTA el tiempo, de acuerdo a lo mencionado anteriormente.
A57: 4.- Una vez terminado el llenado solicitado presione el botón PUNTUACIÓN.
A58: 5.- Usted visualizará el ordenamiento de los trámites ingresados de acuerdo al número de volumen o frecuencia anual.
A59: 6.- Así mismo, usted visualizará el puntaje obtenido en la columna PUNTUACIÓN de acuerdo al grupo obtenido por cada trámite de acuerdo al número de volumen o frecuencia anual cosiderando lo siguiente: La puntuación considera lo siguiente: ** Primer grupo (menor o igual a 40 horas laboralres) = 0 ** Segundo grupo mayor 40 horas laboralres) = 30
A60: e) Canal de atención:
A61: Considerará los canales de atención a través de los cuales el administrado puede iniciar el trámite.
A62: Para realizar el registro realice lo siguiente:
A63: 1.- Seleccione la hoja CANAL ATENCIÓN
A64: 2.- Ingrese los trámites de la institución registrando el identificador y nombre en las columnas respectivas. Si usted requiere de acuerdo al número de trámites copie filas adicionales que estén dentro del cuadro
A65: 3.- Para cada trámite debe seleccionar el canal de atención del trámite en la columna CANAL ATENCIÓN, que pueden ser: El trámite se puede completar totalmente en línea: Se considera trámite totalmente en línea cuando el administrado no requiere realizar ninguna interacción presencial con la institución = 0 El trámite no se puede completar totalmente en línea: Se considera este caso, cuando el trámite incluye al menos una actividad, incluido mecanismos de pago, en la que el administrado deba acudir presencialmente a la institución, para la realización de dicho trámite. Los trámites presenciales se consideran dentro de esta categoría = 10
A66: 4.- De acuerdo a la selección usted obtendrá la puntuación del trámite que se visualizará en la columna PUNTUACIÓN.
A68: f) Resumen
A69: En esta hoja deberá consolidar todas las puntuaciones obtenidas para cada trámite en los criterios a) hasta e). Adicionalmente deberá analizar los criterios adicionales que dispone la norma técnica, para estos últimos solamente deberá seleccionar en la celda correspondiente y la matriz asignará la puntuación adicional. Los criterios que deberá considerar son: - NECESIDADES CIUDADANAS: Si la institución ha implementado mecanismos para identificar necesidades ciudadanas respecto al trámite, seleccionar "SI", caso contrario, seleccionar "NO" - SUSCEPTIBILIDAD A CORRUPCIÓN: Si la institución dispone de información documentada sobre presuntos actos de corrupción, seleccionar "SI", caso contrario, seleccionar "NO" - VOLUMEN DE DEVOLUCIONES: Si la institución posee documentación sobre devoluciones del trámite en una cantidad significativa, seleccionar "SI", caso contrario, seleccionar "NO" Para que funcione la lista depelgable debe arrastrar la lista y la puntuación hacia abajo al último de los támites ingresados, no copiar
A70: En la columna puntaje total se realizará la sumatoria de los valores de los criterios básicos y adicionales. Este valor deberá registrarse en la plataforma GOB.EC

Sheet DEMANDA ANUAL
A1: PRIORIZACIÓN DE TRÁMITES ADMINISTRATIVOS
A2: DEMANDA ANUAL
A4: IDENTIFICADOR | B4: TRÁMITE | C4: DEMANDA ANUAL | D4: PUNTAJE
A5: SENESCYT-012-01-04 | B5: Categorización como Investigador Agregado 3 | C5: 0 | D5: 0
A6: SENESCYT-017-01-01 | B6: Postulación de proyectos innovadores y la asignación de capital semilla | C6: 0 | D6: 0
A7: SENESCYT-023-01-01 | B7: Inscripción para el acceso a la nivelación general | C7: 0 | D7: 0
A8: SENESCYT-035-01-05 | B8: Autorización de prórroga de plazo para ejecución de proyecto para beneficiarios de becas | C8: 0 | D8: 0
A9: SENESCYT-040-01-02 | B9: Aprobación resolución de actualización de datos de la persona beneficiaria de crédito educativo | C9: 0 | D9: 0
A10: SENESCYT-045-02-01 | B10: Atención a la solicitud de apelación al resultado de la postulación de becas nacionales e internacionales | C10: 0 | D10: 0
A11: SENESCYT-012-01-01 | B11: Categorización como Investigador Principal 4 | C11: 1 | D11: 3
A12: SENESCYT-012-01-02 | B12: Categorización como Investigador Principal 3 | C12: 1 | D12: 3
A13: SENESCYT-012-01-03 | B13: Categorización como Investigador Principal 2 | C13: 1 | D13: 3
A14: SENESCYT-012-01-09 | B14: Categorización como Investigador Principal 1 | C14: 1 | D14: 3
A15: SENESCYT-024-01-01 | B15: Emisión de títulos de formación técnica y tecnológica de instituciones públicas o particulares | C15: 1 | D15: 3
A16: SENESCYT-035-01-02 | B16: Autorización de cambio o liberación de la entidad auspiciante de becas internacionales | C16: 1 | D16: 3
A17: SENESCYT-040-01-01 | B17: Otorgamiento de prórroga académica por crédito educativo | C17: 2 | D17: 3
A18: SENESCYT-044-01-03 | B18: Aprobación de resolución a la solicitud de renuncia a la beca educativa (contrato suscrito sin desembolsos) | C18: 2 | D18: 3
A19: SENESCYT-019-01-01 | B19: Registro de espacios de trabajo colaborativo | C19: 3 | D19: 3
A20: SENESCYT-001-01-01 | B20: Registro de carreras y programas en estado no vigente y de cuarto nivel | C20: 4 | D20: 3
A21: SENESCYT-006-01-01 | B21: Modificación de datos de carreras y programas de estudio | C21: 5 | D21: 3
A22: SENESCYT-004-01-02 | B22: Modificación del nivel de formación de los títulos de tecnólogos médicos al tercer nivel y de doctores al cuarto nivel | C22: 6 | D22: 3
A23: SENESCYT-007-01-01 | B23: Exoneración de derechos aduaneros para instituciones de educación superior | C23: 6 | D23: 3
A24: SENESCYT-005-02-01 | B24: Anulaciones de registro de títulos del extranjero | C24: 8 | D24: 3
A25: SENESCYT-008-01-01 | B25: Evaluación de IES extranjeras para inclusión o exclusión en el listado | C25: 8 | D25: 3
A26: SENESCYT-004-02-01 | B26: Modificación de registro de títulos extranjero para PhD | C26: 10 | D26: 3
A27: SENESCYT-040-01-03 | B27: Aprobación resolución de suspensión de desembolsos de crédito educativo | C27: 10 | D27: 3
A28: SENESCYT-034-01-02 | B28: Aprobación de facilidades de pago a valores adeudados para beneficiarios de becas educativas | C28: 11 | D28: 3
A29: SENESCYT-044-02-04 | B29: Aprobación resolución a la solicitud de suspensión temporal de estudios para beneficiarios de becas | C29: 11 | D29: 3
A30: SENESCYT-044-01-02 | B30: Autorización de cambio de condiciones contractuales antes de la firma de beca | C30: 12 | D30: 3
A31: SENESCYT-004-01-01 | B31: Modificación de registro de títulos nacionales de Instituciones de Educación Superior cerradas | C31: 13 | D31: 3
A32: SENESCYT-044-02-03 | B32: Aprobación resolución a la solicitud de terminación de contrato de becas | C32: 13 | D32: 3
A33: SENESCYT-044-02-02 | B33: Aprobación resolución de reactivación de beca educativa | C33: 15 | D33: 3
A34: SENESCYT-021-01-03 | B34: Certificado de pertenencia al grupo de alto rendimiento (GAR) programa internacional | C34: 18 | D34: 3
A35: SENESCYT-035-01-04 | B35: Autorización de cambio de período de compensación y otros tipos de compensación para beneficiarios de becas educativas | C35: 21 | D35: 6
A36: SENESCYT-025-01-02 | B36: Actualización de datos generales para el registro de firmas de las autoridades de las Instituciones de Educación Superior. | C36: 24 | D36: 6
A37: SENESCYT-018-01-01 | B37: Acreditación de espacios y agentes de innovación | C37: 25 | D37: 6
A38: SENESCYT-012-01-07 | B38: Categorización como Investigador Auxiliar 2 | C38: 26 | D38: 6
A39: SENESCYT-039-01-01 | B39: Aprobación de desembolso, reembolso o adelanto de desembolso de crédito educativo | C39: 30 | D39: 6
A40: SENESCYT-040-01-04 | B40: Aprobación resolución de terminación del contrato de crédito educativo | C40: 30 | D40: 6
A41: SENESCYT-044-02-01 | B41: Autorización de prórroga de plazo de estudios para beneficiarios de becas educativas | C41: 31 | D41: 6
A42: SENESCYT-012-01-05 | B42: Categorización como Investigador Agregado 2 | C42: 34 | D42: 6
A43: SENESCYT-014-01-02 | B43: Actualización de información de la publicación Latindex | C43: 34 | D43: 6
A44: SENESCYT-012-01-06 | B44: Categorización como Investigador Agregado 1 | C44: 36 | D44: 6
A45: SENESCYT-025-01-01 | B45: Creación de credenciales para Instituciones de Educación Superior (IES) | C45: 36 | D45: 6
A46: SENESCYT-004-02-02 | B46: Modificación de registro de títulos extranjero de títulos propios | C46: 38 | D46: 6
A47: SENESCYT-013-01-02 | B47: Actualización de información del código ISSN | C47: 40 | D47: 6
A48: SENESCYT-005-01-01 | B48: Anulaciones de registro de títulos nacionales | C48: 49 | D48: 6
A49: SENESCYT-027-01-01 | B49: Registro de Redes del Sistema de Educación Superior y del Sistema Nacional de Ciencia, Tecnología, Innovación y Saberes Ancestrales | C49: 54 | D49: 6
A50: SENESCYT-044-01-01 | B50: Aprobación de cambio de condiciones contractuales de beca nacional o internacional | C50: 58 | D50: 6
A51: SENESCYT-010-02-01 | B51: Registro de empresas públicas y privadas en la plataforma de transferencia del conocimiento "Ensamble" | C51: 65 | D51: 6
A52: SENESCYT-014-01-01 | B52: Evaluación o revaluación Latindex para publicaciones científicas | C52: 73 | D52: 6
A53: SENESCYT-004-02-03 | B53: Modificación de registro de títulos extranjero de campos de información académica general | C53: 78 | D53: 6
A54: SENESCYT-035-01-03 | B54: Autorización de diferimiento del período de compensación de becas | C54: 79 | D54: 6
A55: SENESCYT-012-01-08 | B55: Categorización como Investigador Auxiliar 1 | C55: 92 | D55: 6
A56: SENESCYT-026-01-01 | B56: Atención de solicitudes de acceso a la información pública referente a la educación superior, la ciencia, tecnología e innovación | C56: 93 | D56: 6
A57: SENESCYT-001-02-01 | B57: Registro de títulos históricos | C57: 107 | D57: 6
A58: SENESCYT-013-01-01 | B58: Asignación del código ISSN (International Standard Serial Number) | C58: 123 | D58: 6
A59: SENESCYT-010-01-01 | B59: Vinculación de becarios a la plataforma de transferencia del conocimiento "Ensamble" | C59: 124 | D59: 10
A60: SENESCYT-028-01-01 | B60: Registro de personas naturales relacionadas a la investigación y/o desarrollo tecnológico | C60: 182 | D60: 10
A61: SENESCYT-034-01-01 | B61: Aprobación de liquidación de becas nacionales e internacionales | C61: 236 | D61: 10
A62: SENESCYT-011-01-01 | B62: Acreditación de investigadores/as científicos/as | C62: 337 | D62: 10
A63: SENESCYT-024-01-02 | B63: Certificado de títulos en proceso de emisión de formación técnica y tecnológica de instituciones públicas o particulares | C63: 362 | D63: 10
A64: SENESCYT-041-01-01 | B64: Aprobación de legalización de contrato de becas nacionales e internacionales | C64: 413 | D64: 10
A65: SENESCYT-002-01-03 | B65: Reconocimiento de títulos doctorales del extrajero (PhD.) | C65: 419 | D65: 10
A66: SENESCYT-036-01-01 | B66: Aprobación de facilidades de pago en etapa coactiva | C66: 471 | D66: 10
A67: SENESCYT-038-01-01 | B67: Emisión de reportes académicos de crédito educativo | C67: 492 | D67: 10
A68: SENESCYT-037-01-01 | B68: Emisión de certificados relacionados con crédito educativo | C68: 511 | D68: 10
A69: SENESCYT-004-02-04 | B69: Modificación de registro de títulos extranjero de campos de información personal | C69: 678 | D69: 10
A70: SENESCYT-045-01-01 | B70: Emisión de certificado de ser beneficiario de becas nacionales e internacionales | C70: 981 | D70: 10
A71: SENESCYT-009-01-01 | B71: Hojas de vida de becarios para procesos de selección | C71: 994 | D71: 10
A72: SENESCYT-002-01-02 | B72: Reconocimiento de títulos profesionales o grados académicos en el campo de la salud | C72: 1320 | D72: 10
A73: SENESCYT-035-01-01 | B73: Autorización de registro de compensación becas internacionales y administración becas otorgadas por el ministerio de salud pública | C73: 1383 | D73: 10
A74: SENESCYT-042-01-01 | B74: Aprobación de postulación a becas nacionales e internacionales | C74: 1554 | D74: 10
A75: SENESCYT-037-01-02 | B75: Otorgamiento de información académica de crédito educativo | C75: 2633 | D75: 10
A76: SENESCYT-043-01-01 | B76: Autorización de desembolso de becas nacionales e internacionales a partir de segundo pago | C76: 3166 | D76: 10
A77: SENESCYT-002-01-01 | B77: Reconocimiento general de títulos del extranjero | C77: 8022 | D77: 10
A78: SENESCYT-022-01-01 | B78: Habilitación de cuenta en plataforma "Ser Bachiller" | C78: 31992 | D78: 10
A79: SENESCYT-003-01-01 | B79: Certificación de acreditación de las instituciones de educación superior nacionales | C79: 40451 | D79: 10
A80: SENESCYT-022-01-02 | B80: Habilitación de nota en plataforma "Ser Bachiller" | C80: 71443 | D80: 10
A81: SENESCYT-021-01-02 | B81: Certificado de haber aceptado o no haber aceptado un cupo en el Sistema Nacional de Nivelación y Admisión | C81: 215222 | D81: 10
A82: SENESCYT-020-01-01 | B82: Obtención de cupos para el acceso a la educación superior para ecuatorianos residentes y no residentes en el país y para extranjeros residentes en el país | C82: 218302 | D82: 10
A83: SENESCYT-021-01-01 | B83: Certificado de notas obtenidas en el examen para el acceso a la educación superior | C83: 630753 | D83: 10

Sheet VOLUMEN DE QUEJAS
A1: PRIORIZACIÓN DE TRÁMITES ADMINISTRATIVOS
A2: VOLUMEN DE QUEJAS
A4: IDENTIFICADOR | B4: TRÁMITE | C4: VOLUMEN DEMANDA | D4: VOLUMEN DE QUEJAS | E4: PORCENTAJE | F4: PUNTUACIÓN
A5: SENESCYT-001-01-01 | B5: Registro de carreras y programas en estado no vigente y de cuarto nivel | C5: 4 | D5: 0 | E5: =(D5/C5)*100 -> 0 | F5: 0
A6: SENESCYT-004-02-01 | B6: Modificación de registro de títulos extranjero para PhD | C6: 10 | D6: 0 | E6: 0 | F6: 0
A7: SENESCYT-004-02-02 | B7: Modificación de registro de títulos extranjero de títulos propios | C7: 38 | D7: 0 | E7: 0 | F7: 0
A8: SENESCYT-005-02-01 | B8: Anulaciones de registro de títulos del extranjero | C8: 8 | D8: 0 | E8: 0 | F8: 0
A9: SENESCYT-007-01-01 | B9: Exoneración de derechos aduaneros para instituciones de educación superior | C9: 6 | D9: 0 | E9: 0 | F9: 0
A10: SENESCYT-010-01-01 | B10: Vinculación de becarios a la plataforma de transferencia del conocimiento "Ensamble" | C10: 124 | D10: 0 | E10: 0 | F10: 0
A11: SENESCYT-010-02-01 | B11: Registro de empresas públicas y privadas en la plataforma de transferencia del conocimiento "Ensamble" | C11: 65 | D11: 0 | E11: 0 | F11: 0
A12: SENESCYT-012-01-01 | B12: Categorización como Investigador Principal 4 | C12: 1 | D12: 0 | E12: 0 | F12: 0
A13: SENESCYT-012-01-02 | B13: Categorización como Investigador Principal 3 | C13: 1 | D13: 0 | E13: 0 | F13: 0
A14: SENESCYT-012-01-03 | B14: Categorización como Investigador Principal 2 | C14: 1 | D14: 0 | E14: 0 | F14: 0
A15: SENESCYT-012-01-04 | B15: Categorización como Investigador Agregado 3 | C15: 0 | D15: 0 | E15: 0 | F15: 0
A16: SENESCYT-012-01-05 | B16: Categorización como Investigador Agregado 2 | C16: 34 | D16: 0 | E16: =(D16/C16)*100 -> 0 | F16: 0
A17: SENESCYT-012-01-06 | B17: Categorización como Investigador Agregado 1 | C17: 36 | D17: 0 | E17: 0 | F17: 0
A18: SENESCYT-012-01-07 | B18: Categorización como Investigador Auxiliar 2 | C18: 26 | D18: 0 | E18: 0 | F18: 0
A19: SENESCYT-012-01-08 | B19: Categorización como Investigador Auxiliar 1 | C19: 92 | D19: 0 | E19: 0 | F19: 0
A20: SENESCYT-012-01-09 | B20: Categorización como Investigador Principal 1 | C20: 1 | D20: 0 | E20: 0 | F20: 0
A21: SENESCYT-013-01-01 | B21: Asignación del código ISSN (International Standard Serial Number) | C21: 123 | D21: 0 | E21: 0 | F21: 0
A22: SENESCYT-013-01-02 | B22: Actualización de información del código ISSN | C22: 40 | D22: 0 | E22: 0 | F22: 0
A23: SENESCYT-014-01-01 | B23: Evaluación o revaluación Latindex para publicaciones científicas | C23: 73 | D23: 0 | E23: 0 | F23: 0
A24: SENESCYT-014-01-02 | B24: Actualización de información de la publicación Latindex | C24: 34 | D24: 0 | E24: 0 | F24: 0
A25: SENESCYT-017-01-01 | B25: Postulación de proyectos innovadores y la asignación de capital semilla | C25: 0 | D25: 0 | E25: 0 | F25: 0
A26: SENESCYT-019-01-01 | B26: Registro de espacios de trabajo colaborativo | C26: 3 | D26: 0 | E26: =(D26/C26)*100 -> 0 | F26: 0
A27: SENESCYT-021-01-03 | B27: Certificado de pertenencia al grupo de alto rendimiento (GAR) programa internacional | C27: 18 | D27: 0 | E27: =(D27/C27)*100 -> 0 | F27: 0
A28: SENESCYT-023-01-01 | B28: Inscripción para el acceso a la nivelación general | C28: 0 | D28: 0 | E28: 0 | F28: 0
A29: SENESCYT-024-01-02 | B29: Certificado de títulos en proceso de emisión de formación técnica y tecnológica de instituciones públicas o particulares | C29: 362 | D29: 0 | E29: =(D29/C29)*100 -> 0 | F29: 0
A30: SENESCYT-025-01-01 | B30: Creación de credenciales para Instituciones de Educación Superior (IES) | C30: 36 | D30: 0 | E30: 0 | F30: 0
A31: SENESCYT-025-01-02 | B31: Actualización de datos generales para el registro de firmas de las autoridades de las Instituciones de Educación Superior. | C31: 24 | D31: 0 | E31: 0 | F31: 0
A32: SENESCYT-027-01-01 | B32: Registro de Redes del Sistema de Educación Superior y del Sistema Nacional de Ciencia, Tecnología, Innovación y Saberes Ancestrales | C32: 54 | D32: 0 | E32: 0 | F32: 0
A33: SENESCYT-028-01-01 | B33: Registro de personas naturales relacionadas a la investigación y/o desarrollo tecnológico | C33: 182 | D33: 0 | E33: 0 | F33: 0
A34: SENESCYT-035-01-01 | B34: Autorización de registro de compensación becas internacionales y administración becas otorgadas por el ministerio de salud pública | C34: 1383 | D34: 0 | E34: 0 | F34: 0
A35: SENESCYT-035-01-02 | B35: Autorización de cambio o liberación de la entidad auspiciante de becas internacionales | C35: 1 | D35: 0 | E35: 0 | F35: 0
A36: SENESCYT-035-01-03 | B36: Autorización de diferimiento del período de compensación de becas | C36: 79 | D36: 0 | E36: 0 | F36: 0
A37: SENESCYT-035-01-04 | B37: Autorización de cambio de período de compensación y otros tipos de compensación para beneficiarios de becas educativas | C37: 21 | D37: 0 | E37: 0 | F37: 0
A38: SENESCYT-035-01-05 | B38: Autorización de prórroga de plazo para ejecución de proyecto para beneficiarios de becas | C38: 0 | D38: 0 | E38: 0 | F38: 0
A39: SENESCYT-036-01-01 | B39: Aprobación de facilidades de pago en etapa coactiva | C39: 471 | D39: 0 | E39: =(D39/C39)*100 -> 0 | F39: 0
A40: SENESCYT-037-01-01 | B40: Emisión de certificados relacionados con crédito educativo | C40: 511 | D40: 0 | E40: =(D40/C40)*100 -> 0 | F40: 0
A41: SENESCYT-037-01-02 | B41: Otorgamiento de información académica de crédito educativo | C41: 2633 | D41: 0 | E41: =(D41/C41)*100 -> 0 | F41: 0
A42: SENESCYT-038-01-01 | B42: Emisión de reportes académicos de crédito educativo | C42: 492 | D42: 0 | E42: =(D42/C42)*100 -> 0 | F42: 0
A43: SENESCYT-040-01-01 | B43: Otorgamiento de prórroga académica por crédito educativo | C43: 2 | D43: 0 | E43: =(D43/C43)*100 -> 0 | F43: 0
A44: SENESCYT-040-01-02 | B44: Aprobación resolución de actualización de datos de la persona beneficiaria de crédito educativo | C44: 0 | D44: 0 | E44: 0 | F44: 0
A45: SENESCYT-040-01-03 | B45: Aprobación resolución de suspensión de desembolsos de crédito educativo | C45: 10 | D45: 0 | E45: =(D45/C45)*100 -> 0 | F45: 0
A46: SENESCYT-040-01-04 | B46: Aprobación resolución de terminación del contrato de crédito educativo | C46: 30 | D46: 0 | E46: 0 | F46: 0
A47: SENESCYT-041-01-01 | B47: Aprobación de legalización de contrato de becas nacionales e internacionales | C47: 413 | D47: 0 | E47: 0 | F47: 0
A48: SENESCYT-043-01-01 | B48: Autorización de desembolso de becas nacionales e internacionales a partir de segundo pago | C48: 3166 | D48: 0 | E48: 0 | F48: 0
A49: SENESCYT-044-01-01 | B49: Aprobación de cambio de condiciones contractuales de beca nacional o internacional | C49: 58 | D49: 0 | E49: 0 | F49: 0
A50: SENESCYT-044-01-02 | B50: Autorización de cambio de condiciones contractuales antes de la firma de beca | C50: 12 | D50: 0 | E50: 0 | F50: 0
A51: SENESCYT-044-01-03 | B51: Aprobación de resolución a la solicitud de renuncia a la beca educativa (contrato suscrito sin desembolsos) | C51: 2 | D51: 0 | E51: 0 | F51: 0
A52: SENESCYT-044-02-01 | B52: Autorización de prórroga de plazo de estudios para beneficiarios de becas educativas | C52: 31 | D52: 0 | E52: 0 | F52: 0
A53: SENESCYT-044-02-02 | B53: Aprobación resolución de reactivación de beca educativa | C53: 15 | D53: 0 | E53: 0 | F53: 0
A54: SENESCYT-044-02-03 | B54: Aprobación resolución a la solicitud de terminación de contrato de becas | C54: 13 | D54: 0 | E54: 0 | F54: 0
A55: SENESCYT-044-02-04 | B55: Aprobación resolución a la solicitud de suspensión temporal de estudios para beneficiarios de becas | C55: 11 | D55: 0 | E55: 0 | F55: 0
A56: SENESCYT-045-01-01 | B56: Emisión de certificado de ser beneficiario de becas nacionales e internacionales | C56: 981 | D56: 0 | E56: 0 | F56: 0
A57: SENESCYT-045-02-01 | B57: Atención a la solicitud de apelación al resultado de la postulación de becas nacionales e internacionales | C57: 0 | D57: 0 | E57: 0 | F57: 0
A58: SENESCYT-002-01-02 | B58: Reconocimiento de títulos profesionales o grados académicos en el campo de la salud | C58: 1320 | D58: 2 | E58: =(D58/C58)*100 -> 0.1515151515 | F58: 4
A59: SENESCYT-002-01-03 | B59: Reconocimiento de títulos doctorales del extrajero (PhD.) | C59: 419 | D59: 4 | E59: 0.9546539379 | F59: 4
A60: SENESCYT-003-01-01 | B60: Certificación de acreditación de las instituciones de educación superior nacionales | C60: 40451 | D60: 3 | E60: 0.007416380312 | F60: 4
A61: SENESCYT-009-01-01 | B61: Hojas de vida de becarios para procesos de selección | C61: 994 | D61: 1 | E61: 0.1006036217 | F61: 4
A62: SENESCYT-011-01-01 | B62: Acreditación de investigadores/as científicos/as | C62: 337 | D62: 2 | E62: 0.5934718101 | F62: 4
A63: SENESCYT-020-01-01 | B63: Obtención de cupos para el acceso a la educación superior para ecuatorianos residentes y no residentes en el país y para extranjeros residentes en el país | C63: 218302 | D63: 173 | E63: 0.07924801422 | F63: 4
A64: SENESCYT-021-01-01 | B64: Certificado de notas obtenidas en el examen para el acceso a la educación superior | C64: 630753 | D64: 1 | E64: 0.0001585406649 | F64: 4
A65: SENESCYT-021-01-02 | B65: Certificado de haber aceptado o no haber aceptado un cupo en el Sistema Nacional de Nivelación y Admisión | C65: 215222 | D65: 3 | E65: 0.001393909545 | F65: 4
A66: SENESCYT-022-01-01 | B66: Habilitación de cuenta en plataforma "Ser Bachiller" | C66: 31992 | D66: 2 | E66: 0.006251562891 | F66: 4
A67: SENESCYT-022-01-02 | B67: Habilitación de nota en plataforma "Ser Bachiller" | C67: 71443 | D67: 20 | E67: 0.02799434514 | F67: 4
A68: SENESCYT-034-01-01 | B68: Aprobación de liquidación de becas nacionales e internacionales | C68: 236 | D68: 1 | E68: 0.4237288136 | F68: 4
A69: SENESCYT-042-01-01 | B69: Aprobación de postulación a becas nacionales e internacionales | C69: 1554 | D69: 1 | E69: 0.06435006435 | F69: 4
A70: SENESCYT-001-02-01 | B70: Registro de títulos históricos | C70: 107 | D70: 6 | E70: 5.607476636 | F70: 10
A71: SENESCYT-002-01-01 | B71: Reconocimiento general de títulos del extranjero | C71: 8022 | D71: 123 | E71: 1.53328347 | F71: 10
A72: SENESCYT-004-01-01 | B72: Modificación de registro de títulos nacionales de Instituciones de Educación Superior cerradas | C72: 13 | D72: 9 | E72: 69.23076923 | F72: 10
A73: SENESCYT-004-01-02 | B73: Modificación del nivel de formación de los títulos de tecnólogos médicos al tercer nivel y de doctores al cuarto nivel | C73: 6 | D73: 2 | E73: 33.33333333 | F73: 10
A74: SENESCYT-004-02-03 | B74: Modificación de registro de títulos extranjero de campos de información académica general | C74: 78 | D74: 7 | E74: 8.974358974 | F74: 10
A75: SENESCYT-004-02-04 | B75: Modificación de registro de títulos extranjero de campos de información personal | C75: 678 | D75: 7 | E75: 1.032448378 | F75: 10
A76: SENESCYT-005-01-01 | B76: Anulaciones de registro de títulos nacionales | C76: 49 | D76: 4 | E76: 8.163265306 | F76: 10
A77: SENESCYT-006-01-01 | B77: Modificación de datos de carreras y programas de estudio | C77: 5 | D77: 3 | E77: 60 | F77: 10
A78: SENESCYT-008-01-01 | B78: Evaluación de IES extranjeras para inclusión o exclusión en el listado | C78: 8 | D78: 4 | E78: 50 | F78: 10
A79: SENESCYT-018-01-01 | B79: Acreditación de espacios y agentes de innovación | C79: 25 | D79: 1 | E79: 4 | F79: 10
A80: SENESCYT-024-01-01 | B80: Emisión de títulos de formación técnica y tecnológica de instituciones públicas o particulares | C80: 1 | D80: 1 | E80: 100 | F80: 10
A81: SENESCYT-026-01-01 | B81: Atención de solicitudes de acceso a la información pública referente a la educación superior, la ciencia, tecnología e innovación | C81: 93 | D81: 93 | E81: 100 | F81: 10
A82: SENESCYT-034-01-02 | B82: Aprobación de facilidades de pago a valores adeudados para beneficiarios de becas educativas | C82: 11 | D82: 1 | E82: 9.090909091 | F82: 10
A83: SENESCYT-039-01-01 | B83: Aprobación de desembolso, reembolso o adelanto de desembolso de crédito educativo | C83: 30 | D83: 1 | E83: 3.333333333 | F83: 10

Sheet COSTO ADMINISTRACIÓN PÚBLICA
A1: PRIORIZACIÓN DE TRÁMITES ADMINISTRATIVOS
A2: COSTOS PARA LA ADMINISTRACIÓN PÚBLICA
A4: IDENTIFICADOR | B4: TRÁMITE | C4: INSUMOS PARA COSTO | F4: COSTO PARA LA ADM. PÚBLICA | H4: SBU | I4: 400
C5: TIEMPO (HORAS) | D5: COSTO PERSONAL | E5: COSTO RECURSOS
A6: SENESCYT-001-01-01 | B6: Registro de carreras y programas en estado no vigente y de cuarto nivel | C6: 2 | D6: =C6*$I$4/160 -> 5 | E6: 0.15575 | F6: =D6+E6 -> 5.15575
A7: SENESCYT-001-02-01 | B7: Registro de títulos históricos | C7: 2 | D7: =C7*$I$4/160 -> 5 | E7: 0.15575 | F7: =D7+E7 -> 5.15575
A8: SENESCYT-002-01-01 | B8: Reconocimiento general de títulos del extranjero | C8: 2 | D8: 5 | E8: 0.15575 | F8: 5.15575
A9: SENESCYT-002-01-02 | B9: Reconocimiento de títulos profesionales o grados académicos en el campo de la salud | C9: 2 | D9: 5 | E9: 0.15575 | F9: 5.15575
A10: SENESCYT-002-01-03 | B10: Reconocimiento de títulos doctorales del extrajero (PhD.) | C10: 2 | D10: 5 | E10: 0.15575 | F10: 5.15575
A11: SENESCYT-003-01-01 | B11: Certificación de acreditación de las instituciones de educación superior nacionales | C11: 0 | D11: 0 | E11: 0 | F11: 0
A12: SENESCYT-004-01-01 | B12: Modificación de registro de títulos nacionales de Instituciones de Educación Superior cerradas | C12: 2 | D12: 5 | E12: 0.15575 | F12: =D12+E12 -> 5.15575
A13: SENESCYT-004-01-02 | B13: Modificación del nivel de formación de los títulos de tecnólogos médicos al tercer nivel y de doctores al cuarto nivel | C13: 3 | D13: 7.5 | E13: 0.233625 | F13: 7.733625
A14: SENESCYT-004-02-01 | B14: Modificación de registro de títulos extranjero para PhD | C14: 3 | D14: 7.5 | E14: 0.233625 | F14: 7.733625
A15: SENESCYT-004-02-02 | B15: Modificación de registro de títulos extranjero de títulos propios | C15: 2 | D15: 5 | E15: 0.15575 | F15: 5.15575
A16: SENESCYT-004-02-03 | B16: Modificación de registro de títulos extranjero de campos de información académica general | C16: 2 | D16: 5 | E16: 0.15575 | F16: 5.15575
A17: SENESCYT-004-02-04 | B17: Modificación de registro de títulos extranjero de campos de información personal | C17: 2 | D17: 5 | E17: 0.15575 | F17: 5.15575
A18: SENESCYT-005-01-01 | B18: Anulaciones de registro de títulos nacionales | C18: 3 | D18: 7.5 | E18: 0.233625 | F18: =D18+E18 -> 7.733625
A19: SENESCYT-005-02-01 | B19: Anulaciones de registro de títulos del extranjero | C19: 5 | D19: 12.5 | E19: 0.389375 | F19: 12.889375
A20: SENESCYT-006-01-01 | B20: Modificación de datos de carreras y programas de estudio | C20: 18 | D20: 45 | E20: 1.40175 | F20: 46.40175
A21: SENESCYT-007-01-01 | B21: Exoneración de derechos aduaneros para instituciones de educación superior | C21: 5 | D21: 12.5 | E21: 0.389375 | F21: 12.889375
A22: SENESCYT-008-01-01 | B22: Evaluación de IES extranjeras para inclusión o exclusión en el listado | C22: 5 | D22: 12.5 | E22: 0.389375 | F22: 12.889375
A23: SENESCYT-009-01-01 | B23: Hojas de vida de becarios para procesos de selección | C23: 1 | D23: 2.5 | E23: 0.077875 | F23: 2.577875
A24: SENESCYT-010-01-01 | B24: Vinculación de becarios a la plataforma de transferencia del conocimiento "Ensamble" | C24: 1 | D24: 2.5 | E24: 0.077875 | F24: 2.577875
A25: SENESCYT-010-02-01 | B25: Registro de empresas públicas y privadas en la plataforma de transferencia del conocimiento "Ensamble" | C25: 1 | D25: 2.5 | E25: 0.077875 | F25: 2.577875
A26: SENESCYT-011-01-01 | B26: Acreditación de investigadores/as científicos/as | C26: 13 | D26: 32.5 | E26: 1.012375 | F26: 33.512375
A27: SENESCYT-012-01-01 | B27: Categorización como Investigador Principal 4 | C27: 13 | D27: 32.5 | E27: 1.012375 | F27: 33.512375
A28: SENESCYT-012-01-02 | B28: Categorización como Investigador Principal 3 | C28: 13 | D28: 32.5 | E28: 1.012375 | F28: 33.512375
A29: SENESCYT-012-01-03 | B29: Categorización como Investigador Principal 2 | C29: 13 | D29: 32.5 | E29: 1.012375 | F29: 33.512375
A30: SENESCYT-012-01-04 | B30: Categorización como Investigador Agregado 3 | C30: 13 | D30: 32.5 | E30: 1.012375 | F30: 33.512375
A31: SENESCYT-012-01-05 | B31: Categorización como Investigador Agregado 2 | C31: 13 | D31: 32.5 | E31: 1.012375 | F31: 33.512375
A32: SENESCYT-012-01-06 | B32: Categorización como Investigador Agregado 1 | C32: 13 | D32: 32.5 | E32: 1.012375 | F32: 33.512375
A33: SENESCYT-012-01-07 | B33: Categorización como Investigador Auxiliar 2 | C33: 13 | D33: 32.5 | E33: 1.012375 | F33: 33.512375
A34: SENESCYT-012-01-08 | B34: Categorización como Investigador Auxiliar 1 | C34: 13 | D34: 32.5 | E34: 1.012375 | F34: 33.512375
A35: SENESCYT-012-01-09 | B35: Categorización como Investigador Principal 1 | C35: 13 | D35: 32.5 | E35: 1.012375 | F35: 33.512375
A36: SENESCYT-013-01-01 | B36: Asignación del código ISSN (International Standard Serial Number) | C36: 3 | D36: 7.5 | E36: 0.233625 | F36: 7.733625
A37: SENESCYT-013-01-02 | B37: Actualización de información del código ISSN | C37: 4 | D37: 10 | E37: 0.3115 | F37: 10.3115
A38: SENESCYT-014-01-01 | B38: Evaluación o revaluación Latindex para publicaciones científicas | C38: 3 | D38: 7.5 | E38: 0.233625 | F38: 7.733625
A39: SENESCYT-014-01-02 | B39: Actualización de información de la publicación Latindex | C39: 4 | D39: 10 | E39: 0.3115 | F39: 10.3115
A40: SENESCYT-017-01-01 | B40: Postulación de proyectos innovadores y la asignación de capital semilla | C40: 12 | D40: 30 | E40: 0.9345 | F40: 30.9345
A41: SENESCYT-018-01-01 | B41: Acreditación de espacios y agentes de innovación | C41: 2 | D41: 5 | E41: 0.15575 | F41: 5.15575
A42: SENESCYT-019-01-01 | B42: Registro de espacios de trabajo colaborativo | C42: 2 | D42: 5 | E42: 0.15575 | F42: 5.15575
A43: SENESCYT-020-01-01 | B43: Obtención de cupos para el acceso a la educación superior para ecuatorianos residentes y no residentes en el país y para extranjeros residentes en el país | C43: 6 | D43: 15 | E43: 3.42 | F43: 18.42
A44: SENESCYT-021-01-01 | B44: Certificado de notas obtenidas en el examen para el acceso a la educación superior | C44: 0 | D44: 0 | E44: 0 | F44: 0
A45: SENESCYT-021-01-02 | B45: Certificado de haber aceptado o no haber aceptado un cupo en el Sistema Nacional de Nivelación y Admisión | C45: 0 | D45: 0 | E45: 0 | F45: 0
A46: SENESCYT-021-01-03 | B46: Certificado de pertenencia al grupo de alto rendimiento (GAR) programa internacional | C46: 1 | D46: 2.5 | E46: 0.077875 | F46: 2.577875
A47: SENESCYT-022-01-01 | B47: Habilitación de cuenta en plataforma "Ser Bachiller" | C47: 1 | D47: 2.5 | E47: 0.077875 | F47: 2.577875
A48: SENESCYT-022-01-02 | B48: Habilitación de nota en plataforma "Ser Bachiller" | C48: 1 | D48: 2.5 | E48: 0.077875 | F48: 2.577875
A49: SENESCYT-023-01-01 | B49: Inscripción para el acceso a la nivelación general | C49: 0 | D49: 0 | E49: 0 | F49: 0
A50: SENESCYT-024-01-01 | B50: Emisión de títulos de formación técnica y tecnológica de instituciones públicas o particulares | C50: 3 | D50: 7.5 | E50: 0.233625 | F50: 7.733625
A51: SENESCYT-024-01-02 | B51: Certificado de títulos en proceso de emisión de formación técnica y tecnológica de instituciones públicas o particulares | C51: 1 | D51: 2.5 | E51: 0.077875 | F51: 2.577875
A52: SENESCYT-025-01-01 | B52: Creación de credenciales para Instituciones de Educación Superior (IES) | C52: 5 | D52: 12.5 | E52: 0.389375 | F52: 12.889375
A53: SENESCYT-025-01-02 | B53: Actualización de datos generales para el registro de firmas de las autoridades de las Instituciones de Educación Superior. | C53: 3 | D53: 7.5 | E53: 0.233625 | F53: 7.733625
A54: SENESCYT-026-01-01 | B54: Atención de solicitudes de acceso a la información pública referente a la educación superior, la ciencia, tecnología e innovación | C54: 1 | D54: 2.5 | E54: 0.077875 | F54: 2.577875
A55: SENESCYT-027-01-01 | B55: Registro de Redes del Sistema de Educación Superior y del Sistema Nacional de Ciencia, Tecnología, Innovación y Saberes Ancestrales | C55: 2 | D55: 5 | E55: 0.15575 | F55: 5.15575
A56: SENESCYT-028-01-01 | B56: Registro de personas naturales relacionadas a la investigación y/o desarrollo tecnológico | C56: 4 | D56: 10 | E56: 0.3115 | F56: 10.3115
A57: SENESCYT-034-01-01 | B57: Aprobación de liquidación de becas nacionales e internacionales | C57: 4 | D57: =C57*$I$4/160 -> 10 | E57: 0.1246 | F57: 10.1246
A58: SENESCYT-034-01-02 | B58: Aprobación de facilidades de pago a valores adeudados para beneficiarios de becas educativas | C58: 2 | D58: =C58*$I$4/160 -> 5 | E58: 0.0623 | F58: 5.0623
A59: SENESCYT-035-01-01 | B59: Autorización de registro de compensación becas internacionales y administración becas otorgadas por el ministerio de salud pública | C59: 1 | D59: 2.5 | E59: 0.03115 | F59: 2.53115
A60: SENESCYT-035-01-02 | B60: Autorización de cambio o liberación de la entidad auspiciante de becas internacionales | C60: 4 | D60: 10 | E60: 0.1246 | F60: 10.1246
A61: SENESCYT-035-01-03 | B61: Autorización de diferimiento del período de compensación de becas | C61: 4 | D61: 10 | E61: 0.1246 | F61: 10.1246
A62: SENESCYT-035-01-04 | B62: Autorización de cambio de período de compensación y otros tipos de compensación para beneficiarios de becas educativas | C62: 4 | D62: 10 | E62: 0.1246 | F62: 10.1246
A63: SENESCYT-035-01-05 | B63: Autorización de prórroga de plazo para ejecución de proyecto para beneficiarios de becas | C63: 4 | D63: 10 | E63: 0.1246 | F63: 10.1246
A64: SENESCYT-036-01-01 | B64: Aprobación de facilidades de pago en etapa coactiva | C64: 1 | D64: 2.5 | E64: 0.03115 | F64: 2.53115
A65: SENESCYT-037-01-01 | B65: Emisión de certificados relacionados con crédito educativo | C65: 0 | D65: 0 | E65: 0 | F65: 0
A66: SENESCYT-037-01-02 | B66: Otorgamiento de información académica de crédito educativo | C66: 2 | D66: 5 | E66: 0.0623 | F66: 5.0623
A67: SENESCYT-038-01-01 | B67: Emisión de reportes académicos de crédito educativo | C67: 1 | D67: 2.5 | E67: 0.03115 | F67: 2.53115
A68: SENESCYT-039-01-01 | B68: Aprobación de desembolso, reembolso o adelanto de desembolso de crédito educativo | C68: 2 | D68: 5 | E68: 0.0623 | F68: 5.0623
A69: SENESCYT-040-01-01 | B69: Otorgamiento de prórroga académica por crédito educativo | C69: 2 | D69: 5 | E69: 0.0623 | F69: 5.0623
A70: SENESCYT-040-01-02 | B70: Aprobación resolución de actualización de datos de la persona beneficiaria de crédito educativo | C70: 2 | D70: 5 | E70: 0.0623 | F70: 5.0623
A71: SENESCYT-040-01-03 | B71: Aprobación resolución de suspensión de desembolsos de crédito educativo | C71: 2 | D71: 5 | E71: 0.0623 | F71: 5.0623
A72: SENESCYT-040-01-04 | B72: Aprobación resolución de terminación del contrato de crédito educativo | C72: 2 | D72: 5 | E72: 0.0623 | F72: 5.0623
A73: SENESCYT-041-01-01 | B73: Aprobación de legalización de contrato de becas nacionales e internacionales | C73: 2 | D73: 5 | E73: 0.1246 | F73: 5.1246
A74: SENESCYT-042-01-01 | B74: Aprobación de postulación a becas nacionales e internacionales | C74: 4 | D74: 10 | E74: 0.1246 | F74: 10.1246
A75: SENESCYT-043-01-01 | B75: Autorización de desembolso de becas nacionales e internacionales a partir de segundo pago | C75: 2 | D75: 5 | E75: 0.0623 | F75: 5.0623
A76: SENESCYT-044-01-01 | B76: Aprobación de cambio de condiciones contractuales de beca nacional o internacional | C76: 3 | D76: 7.5 | E76: 0.09345 | F76: =D76+E76 -> 7.59345
A77: SENESCYT-044-01-02 | B77: Autorización de cambio de condiciones contractuales antes de la firma de beca | C77: 3 | D77: 7.5 | E77: 0.09345 | F77: 7.59345
A78: SENESCYT-044-01-03 | B78: Aprobación de resolución a la solicitud de renuncia a la beca educativa (contrato suscrito sin desembolsos) | C78: 2 | D78: 5 | E78: 0.0623 | F78: 5.0623
A79: SENESCYT-044-02-01 | B79: Autorización de prórroga de plazo de estudios para beneficiarios de becas educativas | C79: 4 | D79: 10 | E79: 0.1246 | F79: 10.1246
A80: SENESCYT-044-02-02 | B80: Aprobación resolución de reactivación de beca educativa | C80: 3 | D80: 7.5 | E80: 0.09345 | F80: 7.59345
A81: SENESCYT-044-02-03 | B81: Aprobación resolución a la solicitud de terminación de contrato de becas | C81: 2 | D81: 5 | E81: 0.0623 | F81: 5.0623
A82: SENESCYT-044-02-04 | B82: Aprobación resolución a la solicitud de suspensión temporal de estudios para beneficiarios de becas | C82: 3 | D82: 7.5 | E82: 0.09345 | F82: 7.59345
A83: SENESCYT-045-01-01 | B83: Emisión de certificado de ser beneficiario de becas nacionales e internacionales | C83: 0 | D83: 0 | E83: 0 | F83: 0
A84: SENESCYT-045-02-01 | B84: Atención a la solicitud de apelación al resultado de la postulación de becas nacionales e internacionales | C84: 2 | D84: 5 | E84: 0.0623 | F84: 5.0623

Sheet RESUMEN DE COSTOS AP
A1: PRIORIZACIÓN DE TRÁMITES ADMINISTRATIVOS
A2: COSTOS PARA LA ADMINISTRACIÓN PÚBLICA
A4: IDENTIFICADOR | B4: TRÁMITE | C4: COSTO PARA LA ADM. PÚBLICA | D4: PUNTUACIÓN
A5: SENESCYT-003-01-01 | B5: Certificación de acreditación de las instituciones de educación superior nacionales | C5: 0 | D5: 0
A6: SENESCYT-021-01-02 | B6: Certificado de haber aceptado o no haber aceptado un cupo en el Sistema Nacional de Nivelación y Admisión | C6: 0 | D6: 0
A7: SENESCYT-021-01-01 | B7: Certificado de notas obtenidas en el examen para el acceso a la educación superior | C7: 0 | D7: 0
A8: SENESCYT-045-01-01 | B8: Emisión de certificado de ser beneficiario de becas nacionales e internacionales | C8: 0 | D8: 0
A9: SENESCYT-037-01-01 | B9: Emisión de certificados relacionados con crédito educativo | C9: 0 | D9: 0
A10: SENESCYT-023-01-01 | B10: Inscripción para el acceso a la nivelación general | C10: 0 | D10: 0
A11: SENESCYT-036-01-01 | B11: Aprobación de facilidades de pago en etapa coactiva | C11: 2.53115 | D11: 5
A12: SENESCYT-035-01-01 | B12: Autorización de registro de compensación becas internacionales y administración becas otorgadas por el ministerio de salud pública | C12: 2.53115 | D12: 5
A13: SENESCYT-038-01-01 | B13: Emisión de reportes académicos de crédito educativo | C13: 2.53115 | D13: 5
A14: SENESCYT-026-01-01 | B14: Atención de solicitudes de acceso a la información pública referente a la educación superior, la ciencia, tecnología e innovación | C14: 2.577875 | D14: 5
A15: SENESCYT-021-01-03 | B15: Certificado de pertenencia al grupo de alto rendimiento (GAR) programa internacional | C15: 2.577875 | D15: 5
A16: SENESCYT-024-01-02 | B16: Certificado de títulos en proceso de emisión de formación técnica y tecnológica de instituciones públicas o particulares | C16: 2.577875 | D16: 5
A17: SENESCYT-022-01-01 | B17: Habilitación de cuenta en plataforma "Ser Bachiller" | C17: 2.577875 | D17: 5
A18: SENESCYT-022-01-02 | B18: Habilitación de nota en plataforma "Ser Bachiller" | C18: 2.577875 | D18: 5
A19: SENESCYT-009-01-01 | B19: Hojas de vida de becarios para procesos de selección | C19: 2.577875 | D19: 5
A20: SENESCYT-010-02-01 | B20: Registro de empresas públicas y privadas en la plataforma de transferencia del conocimiento "Ensamble" | C20: 2.577875 | D20: 5
A21: SENESCYT-010-01-01 | B21: Vinculación de becarios a la plataforma de transferencia del conocimiento "Ensamble" | C21: 2.577875 | D21: 5
A22: SENESCYT-039-01-01 | B22: Aprobación de desembolso, reembolso o adelanto de desembolso de crédito educativo | C22: 5.0623 | D22: 5
A23: SENESCYT-034-01-02 | B23: Aprobación de facilidades de pago a valores adeudados para beneficiarios de becas educativas | C23: 5.0623 | D23: 5
A24: SENESCYT-044-01-03 | B24: Aprobación de resolución a la solicitud de renuncia a la beca educativa (contrato suscrito sin desembolsos) | C24: 5.0623 | D24: 5
A25: SENESCYT-044-02-03 | B25: Aprobación resolución a la solicitud de terminación de contrato de becas | C25: 5.0623 | D25: 5
A26: SENESCYT-040-01-02 | B26: Aprobación resolución de actualización de datos de la persona beneficiaria de crédito educativo | C26: 5.0623 | D26: 5
A27: SENESCYT-040-01-03 | B27: Aprobación resolución de suspensión de desembolsos de crédito educativo | C27: 5.0623 | D27: 5
A28: SENESCYT-040-01-04 | B28: Aprobación resolución de terminación del contrato de crédito educativo | C28: 5.0623 | D28: 5
A29: SENESCYT-045-02-01 | B29: Atención a la solicitud de apelación al resultado de la postulación de becas nacionales e internacionales | C29: 5.0623 | D29: 5
A30: SENESCYT-043-01-01 | B30: Autorización de desembolso de becas nacionales e internacionales a partir de segundo pago | C30: 5.0623 | D30: 5
A31: SENESCYT-037-01-02 | B31: Otorgamiento de información académica de crédito educativo | C31: 5.0623 | D31: 5
A32: SENESCYT-040-01-01 | B32: Otorgamiento de prórroga académica por crédito educativo | C32: 5.0623 | D32: 5
A33: SENESCYT-041-01-01 | B33: Aprobación de legalización de contrato de becas nacionales e internacionales | C33: 5.1246 | D33: 5
A34: SENESCYT-018-01-01 | B34: Acreditación de espacios y agentes de innovación | C34: 5.15575 | D34: 5
A35: SENESCYT-004-02-03 | B35: Modificación de registro de títulos extranjero de campos de información académica general | C35: 5.15575 | D35: 5
A36: SENESCYT-004-02-04 | B36: Modificación de registro de títulos extranjero de campos de información personal | C36: 5.15575 | D36: 5
A37: SENESCYT-004-02-02 | B37: Modificación de registro de títulos extranjero de títulos propios | C37: 5.15575 | D37: 5
A38: SENESCYT-004-01-01 | B38: Modificación de registro de títulos nacionales de Instituciones de Educación Superior cerradas | C38: 5.15575 | D38: 5
A39: SENESCYT-002-01-03 | B39: Reconocimiento de títulos doctorales del extrajero (PhD.) | C39: 5.15575 | D39: 5
A40: SENESCYT-002-01-02 | B40: Reconocimiento de títulos profesionales o grados académicos en el campo de la salud | C40: 5.15575 | D40: 5
A41: SENESCYT-002-01-01 | B41: Reconocimiento general de títulos del extranjero | C41: 5.15575 | D41: 5
A42: SENESCYT-001-01-01 | B42: Registro de carreras y programas en estado no vigente y de cuarto nivel | C42: 5.15575 | D42: 5
A43: SENESCYT-019-01-01 | B43: Registro de espacios de trabajo colaborativo | C43: 5.15575 | D43: 5
A44: SENESCYT-027-01-01 | B44: Registro de Redes del Sistema de Educación Superior y del Sistema Nacional de Ciencia, Tecnología, Innovación y Saberes Ancestrales | C44: 5.15575 | D44: 5
A45: SENESCYT-001-02-01 | B45: Registro de títulos históricos | C45: 5.15575 | D45: 5
A46: SENESCYT-044-01-01 | B46: Aprobación de cambio de condiciones contractuales de beca nacional o internacional | C46: 7.59345 | D46: 10
A47: SENESCYT-044-02-04 | B47: Aprobación resolución a la solicitud de suspensión temporal de estudios para beneficiarios de becas | C47: 7.59345 | D47: 10
A48: SENESCYT-044-02-02 | B48: Aprobación resolución de reactivación de beca educativa | C48: 7.59345 | D48: 10
A49: SENESCYT-044-01-02 | B49: Autorización de cambio de condiciones contractuales antes de la firma de beca | C49: 7.59345 | D49: 10
A50: SENESCYT-025-01-02 | B50: Actualización de datos generales para el registro de firmas de las autoridades de las Instituciones de Educación Superior. | C50: 7.733625 | D50: 10
A51: SENESCYT-005-01-01 | B51: Anulaciones de registro de títulos nacionales | C51: 7.733625 | D51: 10
A52: SENESCYT-013-01-01 | B52: Asignación del código ISSN (International Standard Serial Number) | C52: 7.733625 | D52: 10
A53: SENESCYT-024-01-01 | B53: Emisión de títulos de formación técnica y tecnológica de instituciones públicas o particulares | C53: 7.733625 | D53: 10
A54: SENESCYT-014-01-01 | B54: Evaluación o revaluación Latindex para publicaciones científicas | C54: 7.733625 | D54: 10
A55: SENESCYT-004-02-01 | B55: Modificación de registro de títulos extranjero para PhD | C55: 7.733625 | D55: 10
A56: SENESCYT-004-01-02 | B56: Modificación del nivel de formación de los títulos de tecnólogos médicos al tercer nivel y de doctores al cuarto nivel | C56: 7.733625 | D56: 10
A57: SENESCYT-034-01-01 | B57: Aprobación de liquidación de becas nacionales e internacionales | C57: 10.1246 | D57: 10
A58: SENESCYT-042-01-01 | B58: Aprobación de postulación a becas nacionales e internacionales | C58: 10.1246 | D58: 10
A59: SENESCYT-035-01-04 | B59: Autorización de cambio de período de compensación y otros tipos de compensación para beneficiarios de becas educativas | C59: 10.1246 | D59: 10
A60: SENESCYT-035-01-02 | B60: Autorización de cambio o liberación de la entidad auspiciante de becas internacionales | C60: 10.1246 | D60: 10
A61: SENESCYT-035-01-03 | B61: Autorización de diferimiento del período de compensación de becas | C61: 10.1246 | D61: 10
A62: SENESCYT-044-02-01 | B62: Autorización de prórroga de plazo de estudios para beneficiarios de becas educativas | C62: 10.1246 | D62: 10
A63: SENESCYT-035-01-05 | B63: Autorización de prórroga de plazo para ejecución de proyecto para beneficiarios de becas | C63: 10.1246 | D63: 10
A64: SENESCYT-014-01-02 | B64: Actualización de información de la publicación Latindex | C64: 10.3115 | D64: 20
A65: SENESCYT-013-01-02 | B65: Actualización de información del código ISSN | C65: 10.3115 | D65: 20
A66: SENESCYT-028-01-01 | B66: Registro de personas naturales relacionadas a la investigación y/o desarrollo tecnológico | C66: 10.3115 | D66: 20
A67: SENESCYT-005-02-01 | B67: Anulaciones de registro de títulos del extranjero | C67: 12.889375 | D67: 20
A68: SENESCYT-025-01-01 | B68: Creación de credenciales para Instituciones de Educación Superior (IES) | C68: 12.889375 | D68: 20
A69: SENESCYT-008-01-01 | B69: Evaluación de IES extranjeras para inclusión o exclusión en el listado | C69: 12.889375 | D69: 20
A70: SENESCYT-007-01-01 | B70: Exoneración de derechos aduaneros para instituciones de educación superior | C70: 12.889375 | D70: 20
A71: SENESCYT-020-01-01 | B71: Obtención de cupos para el acceso a la educación superior para ecuatorianos residentes y no residentes en el país y para extranjeros residentes en el país | C71: 18.42 | D71: 20
A72: SENESCYT-017-01-01 | B72: Postulación de proyectos innovadores y la asignación de capital semilla | C72: 30.9345 | D72: 20
A73: SENESCYT-011-01-01 | B73: Acreditación de investigadores/as científicos/as | C73: 33.512375 | D73: 20
A74: SENESCYT-012-01-06 | B74: Categorización como Investigador Agregado 1 | C74: 33.512375 | D74: 20
A75: SENESCYT-012-01-05 | B75: Categorización como Investigador Agregado 2 | C75: 33.512375 | D75: 20
A76: SENESCYT-012-01-04 | B76: Categorización como Investigador Agregado 3 | C76: 33.512375 | D76: 20
A77: SENESCYT-012-01-08 | B77: Categorización como Investigador Auxiliar 1 | C77: 33.512375 | D77: 20
A78: SENESCYT-012-01-07 | B78: Categorización como Investigador Auxiliar 2 | C78: 33.512375 | D78: 20
A79: SENESCYT-012-01-09 | B79: Categorización como Investigador Principal 1 | C79: 33.512375 | D79: 20
A80: SENESCYT-012-01-03 | B80: Categorización como Investigador Principal 2 | C80: 33.512375 | D80: 20
A81: SENESCYT-012-01-02 | B81: Categorización como Investigador Principal 3 | C81: 33.512375 | D81: 20
A82: SENESCYT-012-01-01 | B82: Categorización como Investigador Principal 4 | C82: 33.512375 | D82: 20
A83: SENESCYT-006-01-01 | B83: Modificación de datos de carreras y programas de estudio | C83: 46.40175 | D83: 20

Sheet AUXILIAR COSTO ADMINISTRACIÓN
A2: TRÁMITE: | B2: SENESCYT-001-01-01 Registro de carreras y programas en estado no vigente y de cuarto nivel
A3: NO. | B3: ACTIVIDAD | C3: TIEMPO (MINUTOS)
A4: 1 | B4: Revisar solicitud de trámite en plataforma SIAU online | C4: 10
A5: 2 | B5: Analizar pertinencia del trámite | C5: 60
A6: 3 | B6: Solicitar registro de carrera | C6: 15
A7: 4 | B7: Generar resolución previa | C7: 40
A8: 5 | B8: Notificar al usuario la resolución del trámite | C8: 5
B9: SUMATORIA ACTIVIDADES | C9: =SUM(C4:C8) -> 130 | D9: =+C9/60 -> 2.166666667
A12: TRÁMITE: | B12: SENESCYT-001-02-01 Registro de títulos históricos
A13: NO. | B13: ACTIVIDAD | C13: TIEMPO (MINUTOS)
A14: 1 | B14: Revisar solicitud de trámite en plataforma SIAU online | C14: 10
A15: 2 | B15: Analizar pertinencia del trámite | C15: 60
A16: 3 | B16: Solicitar registro de carrera | C16: 15
A17: 4 | B17: Generar resolución previa | C17: 40
A18: 5 | B18: Notificar al usuario la resolución del trámite | C18: 5
B19: SUMATORIA ACTIVIDADES | C19: =SUM(C14:C18) -> 130 | D19: =+C19/60 -> 2.166666667
A22: TRÁMITE: | B22: SENESCYT-002-01-01 Reconocimiento general de títulos del extranjero
A23: NO. | B23: ACTIVIDAD | C23: TIEMPO (MINUTOS)
A24: 1 | B24: Ingresar requisitos en la plataforma SNIESE | C24: 5
A25: 2 | B25: Asignar expediente | C25: 5
A26: 3 | B26: Revisar expediente | C26: 35
A27: 4 | B27: Dictaminar aceptación o negación | C27: 45
A28: 5 | B28: Firmar resolución | C28: 15
A29: 6 | B29: Notificar negativa o aprobación del reconocimiento del título | C29: 5
B30: SUMATORIA ACTIVIDADES | C30: =SUM(C24:C29) -> 110 | D30: =+C30/60 -> 1.833333333
A33: TRÁMITE: | B33: SENESCYT-002-01-02 Reconocimiento de títulos profesionales o grados académicos en el campo de la salud
A34: NO. | B34: ACTIVIDAD | C34: TIEMPO (MINUTOS)
A35: 1 | B35: Ingresar requisitos en la plataforma SNIESE | C35: 5
A36: 2 | B36: Asignar expediente | C36: 5
A37: 3 | B37: Revisar expediente | C37: 35
A38: 4 | B38: Dictaminar aceptación o negación en Comité de Reconocimiento de Títulos del extranjero | C38: 20
A39: 5 | B39: Firmar resolución | C39: 15
A40: 6 | B40: Notificar negativa o aprobación del reconocimiento del título | C40: 5
B41: SUMATORIA ACTIVIDADES | C41: =SUM(C35:C40) -> 85 | D41: =+C41/60 -> 1.416666667
A44: TRÁMITE: | B44: SENESCYT-002-01-03 Reconocimiento de títulos doctorales del extranjero (PhD.)
A45: NO. | B45: ACTIVIDAD | C45: TIEMPO (MINUTOS)
A46: 1 | B46: Ingresar requisitos en la plataforma SNIESE | C46: 5
A47: 2 | B47: Asignar expediente | C47: 5
A48: 3 | B48: Revisar expediente | C48: 35
A49: 4 | B49: Dictaminar aceptación o negación en Comité de Reconocimiento de Títulos del extranjero | C49: 20
A50: 5 | B50: Firmar resolución | C50: 15
A51: 6 | B51: Notificar negativa o aprobación del reconocimiento del título | C51: 5
B52: SUMATORIA ACTIVIDADES | C52: =SUM(C46:C51) -> 85 | D52: =+C52/60 -> 1.416666667
A54: TRÁMITE: | B54: SENESCYT-003-01-01 Certificación de acreditación de las instituciones de educación superior nacionales
A55: NO. | B55: ACTIVIDAD | C55: TIEMPO (MINUTOS)
A56: 1 | B56: SERVICIO 100% AUTOMATIZADO
B57: SUMATORIA ACTIVIDADES | C57: =SUM(C56:C56) -> 0
A59: TRÁMITE: | B59: SENESCYT-004-01-01 Modificación de registro de títulos nacionales de Instituciones de Educación Superior cerradas
A60: NO. | B60: ACTIVIDAD | C60: TIEMPO (MINUTOS)
A61: 1 | B61: Revisar solicitud de trámite en plataforma SIAU online | C61: 10
A62: 2 | B62: Analizar pertinencia del trámite | C62: 55
A63: 3 | B63: Solicitar modificación de registro de títulos nacionales | C63: 15
A64: 4 | B64: Generar resolución previa | C64: 40
A65: 5 | B65: Notificar al usuario la resolución del trámite | C65: 5
B66: SUMATORIA ACTIVIDADES | C66: =SUM(C61:C65) -> 125 | D66: =+C66/60 -> 2.083333333
A68: TRÁMITE: | B68: SENESCYT-004-01-02 Modificación del nivel de formación de los títulos de tecnólogos médicos al tercer nivel y de doctores al cuarto nivel
A69: NO. | B69: ACTIVIDAD | C69: TIEMPO (MINUTOS)
A70: 1 | B70: Revisar solicitud de trámite en plataforma SIAU online | C70: 10
A71: 2 | B71: Analizar pertinencia del trámite | C71: 90
A72: 3 | B72: Solicitar modificación de registro de títulos nacionales | C72: 15
A73: 4 | B73: Generar resolución previa | C73: 40
A74: 5 | B74: Notificar al usuario la resolución del trámite | C74: 5
B75: SUMATORIA ACTIVIDADES | C75: =SUM(C70:C74) -> 160 | D75: =+C75/60 -> 2.666666667
A78: TRÁMITE: | B78: SENESCYT-004-02-01 Modificación de registro de títulos extranjero para PhD
A79: NO. | B79: ACTIVIDAD | C79: TIEMPO (MINUTOS)
A80: 1 | B80: Revisar solicitud de trámite en plataforma SIAU online | C80: 10
A81: 2 | B81: Analizar pertinencia del trámite | C81: 120
A82: 3 | B82: Solicitar modificación de registro de títulos nacionales | C82: 15
A83: 4 | B83: Generar resolución previa | C83: 50
A84: 5 | B84: Notificar al usuario la resolución del trámite | C84: 5
B85: SUMATORIA ACTIVIDADES | C85: =SUM(C80:C84) -> 200 | D85: =+C85/60 -> 3.333333333
A87: TRÁMITE: | B87: SENESCYT-004-02-02 Modificación de registro de títulos extranjero de títulos propios
A88: NO. | B88: ACTIVIDAD | C88: TIEMPO (MINUTOS)
A89: 1 | B89: Revisar solicitud de trámite en plataforma SIAU online | C89: 10
A90: 2 | B90: Analizar pertinencia del trámite | C90: 40
A91: 3 | B91: Solicitar modificación de registro de títulos del extranjero | C91: 15
A92: 4 | B92: Generar resolución previa | C92: 40
A93: 5 | B93: Notificar al usuario la resolución del trámite | C93: 5
B94: SUMATORIA ACTIVIDADES | C94: =SUM(C89:C93) -> 110 | D94: =+C94/60 -> 1.833333333
A96: TRÁMITE: | B96: SENESCYT-004-02-03 Modificación de registro de títulos extranjero de campos de información académica general
A97: NO. | B97: ACTIVIDAD | C97: TIEMPO (MINUTOS)
A98: 1 | B98: Revisar solicitud de trámite en plataforma SIAU online | C98: 10
A99: 2 | B99: Analizar pertinencia del trámite | C99: 40
A100: 3 | B100: Solicitar modificación de registro de títulos del extranjero | C100: 15
A101: 4 | B101: Generar resolución previa | C101: 40
A102: 5 | B102: Notificar al usuario la resolución del trámite | C102: 5
B103: SUMATORIA ACTIVIDADES | C103: =SUM(C98:C102) -> 110 | D103: =+C103/60 -> 1.833333333
A105: TRÁMITE: | B105: SENESCYT-004-02-04 Modificación de registro de títulos extranjero de campos de información personal
A106: NO. | B106: ACTIVIDAD | C106: TIEMPO (MINUTOS)
A107: 1 | B107: Revisar solicitud de trámite en plataforma SIAU online | C107: 10
A108: 2 | B108: Analizar pertinencia del trámite | C108: 40
A109: 3 | B109: Solicitar modificación de registro de títulos del extranjero | C109: 15
A110: 4 | B110: Generar resolución previa | C110: 40
A111: 5 | B111: Notificar al usuario la resolución del trámite | C111: 5
B112: SUMATORIA ACTIVIDADES | C112: =SUM(C107:C111) -> 110 | D112: =+C112/60 -> 1.833333333
A114: TRÁMITE: | B114: SENESCYT-005-01-01 Anulaciones de registro de títulos nacionales
A115: NO. | B115: ACTIVIDAD | C115: TIEMPO (MINUTOS)
A116: 1 | B116: Revisar solicitud de trámite en plataforma SIAU online | C116: 10
A117: 2 | B117: Analizar pertinencia del trámite | C117: 90
A118: 3 | B118: Solicitar modificación de registro de títulos nacionales | C118: 15
A119: 4 | B119: Generar resolución previa | C119: 40
A120: 5 | B120: Notificar al usuario la resolución del trámite | C120: 5
B121: SUMATORIA ACTIVIDADES | C121: =SUM(C116:C120) -> 160 | D121: =+C121/60 -> 2.666666667
A123: TRÁMITE: | B123: SENESCYT-005-02-01 Anulaciones de registro de títulos del extranjero
A124: NO. | B124: ACTIVIDAD | C124: TIEMPO (MINUTOS)
A125: 1 | B125: Revisar solicitud de trámite en plataforma SIAU online | C125: 10
A126: 2 | B126: Analizar pertinencia del trámite | C126: 180
A127: 3 | B127: Solicitar modificación de registro de títulos del extranjero | C127: 15
A128: 4 | B128: Generar resolución previa | C128: 60
A129: 5 | B129: Notificar al usuario la resolución del trámite | C129: 5
B130: SUMATORIA ACTIVIDADES | C130: =SUM(C125:C129) -> 270 | D130: =+C130/60 -> 4.5
A132: TRÁMITE: | B132: SENESCYT-006-01-01 Modificación de datos de carreras y programas de estudio
A133: NO. | B133: ACTIVIDAD | C133: TIEMPO (MINUTOS)
A134: 1 | B134: Revisar solicitud de trámite en plataforma SIAU online | C134: 10
A135: 2 | B135: Analizar pertinencia del trámite | C135: 960
A136: 3 | B136: Elaborar informe de modificación de información | C136: 60
A137: 4 | B137: Solicitar modificación datos de carreras y programas de estudio | C137: 15
A138: 5 | B138: Notificar al usuario la resolución del trámite | C138: 5
B139: SUMATORIA ACTIVIDADES | C139: =SUM(C134:C138) -> 1050 | D139: =+C139/60 -> 17.5
A141: TRÁMITE: | B141: SENESCYT-007-01-01 Exoneración de derechos aduaneros para instituciones de educación superior
A142: NO. | B142: ACTIVIDAD | C142: TIEMPO (MINUTOS)
A143: 1 | B143: Revisar solicitud de trámite en plataforma SIAU online | C143: 10
A144: 2 | B144: Analizar pertinencia del trámite | C144: 240
A145: 3 | B145: Elaborar informe de exoneración de derechos aduaneros | C145: 60
A146: 5 | B146: Notificar al usuario la resolución del trámite | C146: 5
B147: SUMATORIA ACTIVIDADES | C147: =SUM(C143:C146) -> 315 | D147: =+C147/60 -> 5.25
A150: TRÁMITE: | B150: SENESCYT-008-01-01 Evaluación de IES extranjeras para inclusión o exclusión en el listado
A151: NO. | B151: ACTIVIDAD | C151: TIEMPO (MINUTOS)
A152: 1 | B152: Revisar solicitud de trámite en plataforma SIAU online | C152: 10
A153: 2 | B153: Analizar pertinencia del trámite | C153: 180
A154: 3 | B154: Elaborar informe de inclusión o exclusión en el listado | C154: 55
B155: Generar resolución previa en Comité | C155: 60
A156: 4 | B156: Notificar al usuario la resolución del trámite | C156: 5
B157: SUMATORIA ACTIVIDADES | C157: =SUM(C152:C156) -> 310 | D157: =+C157/60 -> 5.166666667
A159: TRÁMITE: | B159: SENESCYT-009-01-01 Hojas de vida de becarios para procesos de selección
A160: NO. | B160: ACTIVIDAD | C160: TIEMPO (MINUTOS)
A161: 1 | B161: Revisar solicitud de trámite en plataforma | C161: 10
A162: 2 | B162: Registrar formulario | C162: 20
A163: 3 | B163: Identificar perfiles y verificar disponibilidad | C163: 25
A164: 4 | B164: Notificar envío de hoja de vida | C164: 5
B165: SUMATORIA ACTIVIDADES | C165: =SUM(C161:C164) -> 60 | D165: =+C165/60 -> 1
A167: TRÁMITE: | B167: SENESCYT-010-01-01 Vinculación de becarios a la plataforma de transferencia del conocimiento "Ensamble"
A168: NO. | B168: ACTIVIDAD | C168: TIEMPO (MINUTOS)
A169: 1 | B169: Revisar registro de trámite en plataforma | C169: 10
A170: 2 | B170: Contactar a postulante | C170: 15
A171: 3 | B171: Validar postulación | C171: 20
A172: 4 | B172: Registrar y gestionar activación de cuenta | C172: 20
A173: 5 | B173: Notificar activación de cuenta | C173: 5
B174: SUMATORIA ACTIVIDADES | C174: =SUM(C169:C173) -> 70 | D174: =+C174/60 -> 1.166666667
A176: TRÁMITE: | B176: SENESCYT-010-02-01 Registro de empresas públicas y privadas en la plataforma de transferencia del conocimiento "Ensamble"
A177: NO. | B177: ACTIVIDAD | C177: TIEMPO (MINUTOS)
A178: 1 | B178: Revisar registro de trámite en plataforma | C178: 10
A179: 2 | B179: Contactar a postulante | C179: 15
A180: 3 | B180: Validar postulación | C180: 20
A181: 4 | B181: Registrar y gestionar activación de cuenta | C181: 20
A182: 5 | B182: Notificar activación de cuenta | C182: 5
B183: SUMATORIA ACTIVIDADES | C183: =SUM(C178:C182) -> 70 | D183: =+C183/60 -> 1.166666667
A185: TRÁMITE: | B185: SENESCYT-011-01-01 Acreditación de investigadores/as científicos/as
A186: NO. | B186: ACTIVIDAD | C186: TIEMPO (MINUTOS)
A187: 1 | B187: Revisar solicitud de trámite en plataforma | C187: 10
A188: 2 | B188: Analizar requisitos | C188: 720
A189: 3 | B189: Dictaminar aceptación o negación de acreditación de investigadores en plataforma | C189: 15
A190: 5 | B190: Notificar al usuario la resolución del trámite | C190: 5
B191: SUMATORIA ACTIVIDADES | C191: =SUM(C187:C190) -> 750 | D191: =+C191/60 -> 12.5
A193: TRÁMITE: | B193: SENESCYT-012-01-01 Categorización como Investigador Principal 4
A194: NO. | B194: ACTIVIDAD | C194: TIEMPO (MINUTOS)
A195: 1 | B195: Revisar solicitud de trámite en plataforma | C195: 10
A196: 2 | B196: Analizar requisitos | C196: 720
A197: 3 | B197: Asignar categoría en base a estudios, experiencia, conocimientos | C197: 15
A198: 5 | B198: Notificar al usuario la resolución del trámite | C198: 5
B199: SUMATORIA ACTIVIDADES | C199: =SUM(C195:C198) -> 750 | D199: =+C199/60 -> 12.5
A201: TRÁMITE: | B201: SENESCYT-012-01-02 Categorización como Investigador Principal 3
A202: NO. | B202: ACTIVIDAD | C202: TIEMPO (MINUTOS)
A203: 1 | B203: Revisar solicitud de trámite en plataforma | C203: 10
A204: 2 | B204: Analizar requisitos | C204: 720
A205: 3 | B205: Asignar categoría en base a estudios, experiencia, conocimientos | C205: 15
A206: 5 | B206: Notificar al usuario la resolución del trámite | C206: 5
B207: SUMATORIA ACTIVIDADES | C207: =SUM(C203:C206) -> 750 | D207: =+C207/60 -> 12.5
A209: TRÁMITE: | B209: SENESCYT-012-01-03 Categorización como Investigador Principal 2
A210: NO. | B210: ACTIVIDAD | C210: TIEMPO (MINUTOS)
A211: 1 | B211: Revisar solicitud de trámite en plataforma | C211: 10
A212: 2 | B212: Analizar requisitos | C212: 720
A213: 3 | B213: Asignar categoría en base a estudios, experiencia, conocimientos | C213: 15
A214: 5 | B214: Notificar al usuario la resolución del trámite | C214: 5
B215: SUMATORIA ACTIVIDADES | C215: =SUM(C211:C214) -> 750 | D215: =+C215/60 -> 12.5
A217: TRÁMITE: | B217: SENESCYT-012-01-04 Categorización como Investigador Agregado 3
A218: NO. | B218: ACTIVIDAD | C218: TIEMPO (MINUTOS)
A219: 1 | B219: Revisar solicitud de trámite en plataforma | C219: 10
A220: 2 | B220: Analizar requisitos | C220: 720
A221: 3 | B221: Asignar categoría en base a estudios, experiencia, conocimientos | C221: 15
A222: 5 | B222: Notificar al usuario la resolución del trámite | C222: 5
B223: SUMATORIA ACTIVIDADES | C223: =SUM(C219:C222) -> 750 | D223: =+C223/60 -> 12.5
A225: TRÁMITE: | B225: SENESCYT-012-01-05 Categorización como Investigador Agregado 2
A226: NO. | B226: ACTIVIDAD | C226: TIEMPO (MINUTOS)
A227: 1 | B227: Revisar solicitud de trámite en plataforma | C227: 10
A228: 2 | B228: Analizar requisitos | C228: 720
A229: 3 | B229: Asignar categoría en base a estudios, experiencia, conocimientos | C229: 15
A230: 5 | B230: Notificar al usuario la resolución del trámite | C230: 5
B231: SUMATORIA ACTIVIDADES | C231: =SUM(C227:C230) -> 750 | D231: =+C231/60 -> 12.5
A233: TRÁMITE: | B233: SENESCYT-012-01-06 Categorización como Investigador Agregado 1
... 362 more rows

Sheet TIEMPO DE RESPUESTA
A1: PRIORIZACIÓN DE TRÁMITES ADMINISTRATIVOS
A2: TIEMPO DE RESPUESTA
A4: IDENTIFICADOR | B4: TRÁMITE | C4: TIEMPO RESPUESTA (horas laborables) | D4: PUNTUACIÓN
A5: SENESCYT-001-01-01 | B5: Registro de carreras y programas en estado no vigente y de cuarto nivel | C5: 240 | D5: 30
A6: SENESCYT-001-02-01 | B6: Registro de títulos históricos | C6: 240 | D6: 30
A7: SENESCYT-002-01-01 | B7: Reconocimiento general de títulos del extranjero | C7: 240 | D7: 30
A8: SENESCYT-002-01-02 | B8: Reconocimiento de títulos profesionales o grados académicos en el campo de la salud | C8: 360 | D8: 30
A9: SENESCYT-002-01-03 | B9: Reconocimiento de títulos doctorales del extrajero (PhD.) | C9: 360 | D9: 30
A10: SENESCYT-003-01-01 | B10: Certificación de acreditación de las instituciones de educación superior nacionales | C10: 0.08 | D10: 0
A11: SENESCYT-004-01-01 | B11: Modificación de registro de títulos nacionales de Instituciones de Educación Superior cerradas | C11: 80 | D11: 30
A12: SENESCYT-004-01-02 | B12: Modificación del nivel de formación de los títulos de tecnólogos médicos al tercer nivel y de doctores al cuarto nivel | C12: 80 | D12: 30
A13: SENESCYT-004-02-01 | B13: Modificación de registro de títulos extranjero para PhD | C13: 80 | D13: 30
A14: SENESCYT-004-02-02 | B14: Modificación de registro de títulos extranjero de títulos propios | C14: 80 | D14: 30
A15: SENESCYT-004-02-03 | B15: Modificación de registro de títulos extranjero de campos de información académica general | C15: 80 | D15: 30
A16: SENESCYT-004-02-04 | B16: Modificación de registro de títulos extranjero de campos de información personal | C16: 80 | D16: 30
A17: SENESCYT-005-01-01 | B17: Anulaciones de registro de títulos nacionales | C17: 240 | D17: 30
A18: SENESCYT-005-02-01 | B18: Anulaciones de registro de títulos del extranjero | C18: 720 | D18: 30
A19: SENESCYT-006-01-01 | B19: Modificación de datos de carreras y programas de estudio | C19: 120 | D19: 30
A20: SENESCYT-007-01-01 | B20: Exoneración de derechos aduaneros para instituciones de educación superior | C20: 120 | D20: 30
A21: SENESCYT-008-01-01 | B21: Evaluación de IES extranjeras para inclusión o exclusión en el listado | C21: 80 | D21: 30
A22: SENESCYT-009-01-01 | B22: Hojas de vida de becarios para procesos de selección | C22: 64 | D22: 30
A23: SENESCYT-010-01-01 | B23: Vinculación de becarios a la plataforma de transferencia del conocimiento "Ensamble" | C23: 8 | D23: 0
A24: SENESCYT-010-02-01 | B24: Registro de empresas públicas y privadas en la plataforma de transferencia del conocimiento "Ensamble" | C24: 8 | D24: 0
A25: SENESCYT-011-01-01 | B25: Acreditación de investigadores/as científicos/as | C25: 80 | D25: 30
A26: SENESCYT-012-01-01 | B26: Categorización como Investigador Principal 4 | C26: 80 | D26: 30
A27: SENESCYT-012-01-02 | B27: Categorización como Investigador Principal 3 | C27: 80 | D27: 30
A28: SENESCYT-012-01-03 | B28: Categorización como Investigador Principal 2 | C28: 80 | D28: 30
A29: SENESCYT-012-01-04 | B29: Categorización como Investigador Agregado 3 | C29: 80 | D29: 30
A30: SENESCYT-012-01-05 | B30: Categorización como Investigador Agregado 2 | C30: 80 | D30: 30
A31: SENESCYT-012-01-06 | B31: Categorización como Investigador Agregado 1 | C31: 80 | D31: 30
A32: SENESCYT-012-01-07 | B32: Categorización como Investigador Auxiliar 2 | C32: 80 | D32: 30
A33: SENESCYT-012-01-08 | B33: Categorización como Investigador Auxiliar 1 | C33: 80 | D33: 30
A34: SENESCYT-012-01-09 | B34: Categorización como Investigador Principal 1 | C34: 80 | D34: 30
A35: SENESCYT-013-01-01 | B35: Asignación del código ISSN (International Standard Serial Number) | C35: 80 | D35: 30
A36: SENESCYT-013-01-02 | B36: Actualización de información del código ISSN | C36: 80 | D36: 30
A37: SENESCYT-014-01-01 | B37: Evaluación o revaluación Latindex para publicaciones científicas | C37: 80 | D37: 30
A38: SENESCYT-014-01-02 | B38: Actualización de información de la publicación Latindex | C38: 80 | D38: 30
A39: SENESCYT-017-01-01 | B39: Postulación de proyectos innovadores y la asignación de capital semilla | C39: 480 | D39: 30
A40: SENESCYT-018-01-01 | B40: Acreditación de espacios y agentes de innovación | C40: 240 | D40: 30
A41: SENESCYT-019-01-01 | B41: Registro de espacios de trabajo colaborativo | C41: 120 | D41: 30
A42: SENESCYT-020-01-01 | B42: Obtención de cupos para el acceso a la educación superior para ecuatorianos residentes y no residentes en el país y para extranjeros residentes en el país | C42: 120 | D42: 30
A43: SENESCYT-021-01-01 | B43: Certificado de notas obtenidas en el examen para el acceso a la educación superior | C43: 0.08 | D43: 0
A44: SENESCYT-021-01-02 | B44: Certificado de haber aceptado o no haber aceptado un cupo en el Sistema Nacional de Nivelación y Admisión | C44: 0.08 | D44: 0
A45: SENESCYT-021-01-03 | B45: Certificado de pertenencia al grupo de alto rendimiento (GAR) programa internacional | C45: 40 | D45: 0
A46: SENESCYT-022-01-01 | B46: Habilitación de cuenta en plataforma "Ser Bachiller" | C46: 88 | D46: 30
A47: SENESCYT-022-01-02 | B47: Habilitación de nota en plataforma "Ser Bachiller" | C47: 88 | D47: 30
A48: SENESCYT-023-01-01 | B48: Inscripción para el acceso a la nivelación general | C48: 0.25 | D48: 0
A49: SENESCYT-024-01-01 | B49: Emisión de títulos de formación técnica y tecnológica de instituciones públicas o particulares | C49: 120 | D49: 30
A50: SENESCYT-024-01-02 | B50: Certificado de títulos en proceso de emisión de formación técnica y tecnológica de instituciones públicas o particulares | C50: 120 | D50: 30
A51: SENESCYT-025-01-01 | B51: Creación de credenciales para Instituciones de Educación Superior (IES) | C51: 120 | D51: 30
A52: SENESCYT-025-01-02 | B52: Actualización de datos generales para el registro de firmas de las autoridades de las Instituciones de Educación Superior. | C52: 40 | D52: 0
A53: SENESCYT-026-01-01 | B53: Atención de solicitudes de acceso a la información pública referente a la educación superior, la ciencia, tecnología e innovación | C53: 80 | D53: 30
A54: SENESCYT-027-01-01 | B54: Registro de Redes del Sistema de Educación Superior y del Sistema Nacional de Ciencia, Tecnología, Innovación y Saberes Ancestrales | C54: 40 | D54: 0
A55: SENESCYT-028-01-01 | B55: Registro de personas naturales relacionadas a la investigación y/o desarrollo tecnológico | C55: 80 | D55: 30
A56: SENESCYT-034-01-01 | B56: Aprobación de liquidación de becas nacionales e internacionales | C56: 576 | D56: 30
A57: SENESCYT-034-01-02 | B57: Aprobación de facilidades de pago a valores adeudados para beneficiarios de becas educativas | C57: 120 | D57: 30
A58: SENESCYT-035-01-01 | B58: Autorización de registro de compensación becas internacionales y administración becas otorgadas por el ministerio de salud pública | C58: 240 | D58: 30
A59: SENESCYT-035-01-02 | B59: Autorización de cambio o liberación de la entidad auspiciante de becas internacionales | C59: 240 | D59: 30
A60: SENESCYT-035-01-03 | B60: Autorización de diferimiento del período de compensación de becas | C60: 240 | D60: 30
A61: SENESCYT-035-01-04 | B61: Autorización de cambio de período de compensación y otros tipos de compensación para beneficiarios de becas educativas | C61: 240 | D61: 30
A62: SENESCYT-035-01-05 | B62: Autorización de prórroga de plazo para ejecución de proyecto para beneficiarios de becas | C62: 240 | D62: 30
A63: SENESCYT-036-01-01 | B63: Aprobación de facilidades de pago en etapa coactiva | C63: 40 | D63: 0
A64: SENESCYT-037-01-01 | B64: Emisión de certificados relacionados con crédito educativo | C64: 0.08 | D64: 0
A65: SENESCYT-037-01-02 | B65: Otorgamiento de información académica de crédito educativo | C65: 8 | D65: 0
A66: SENESCYT-038-01-01 | B66: Emisión de reportes académicos de crédito educativo | C66: 8 | D66: 0
A67: SENESCYT-039-01-01 | B67: Aprobación de desembolso, reembolso o adelanto de desembolso de crédito educativo | C67: 8 | D67: 0
A68: SENESCYT-040-01-01 | B68: Otorgamiento de prórroga académica por crédito educativo | C68: 40 | D68: 0
A69: SENESCYT-040-01-02 | B69: Aprobación resolución de actualización de datos de la persona beneficiaria de crédito educativo | C69: 40 | D69: 0
A70: SENESCYT-040-01-03 | B70: Aprobación resolución de suspensión de desembolsos de crédito educativo | C70: 120 | D70: 30
A71: SENESCYT-040-01-04 | B71: Aprobación resolución de terminación del contrato de crédito educativo | C71: 40 | D71: 0
A72: SENESCYT-041-01-01 | B72: Aprobación de legalización de contrato de becas nacionales e internacionales | C72: 2 | D72: 0
A73: SENESCYT-042-01-01 | B73: Aprobación de postulación a becas nacionales e internacionales | C73: 480 | D73: 30
A74: SENESCYT-043-01-01 | B74: Autorización de desembolso de becas nacionales e internacionales a partir de segundo pago | C74: 120 | D74: 30
A75: SENESCYT-044-01-01 | B75: Aprobación de cambio de condiciones contractuales de beca nacional o internacional | C75: 480 | D75: 30
A76: SENESCYT-044-01-02 | B76: Autorización de cambio de condiciones contractuales antes de la firma de beca | C76: 480 | D76: 30
A77: SENESCYT-044-01-03 | B77: Aprobación de resolución a la solicitud de renuncia a la beca educativa (contrato suscrito sin desembolsos) | C77: 360 | D77: 30
A78: SENESCYT-044-02-01 | B78: Autorización de prórroga de plazo de estudios para beneficiarios de becas educativas | C78: 480 | D78: 30
A79: SENESCYT-044-02-02 | B79: Aprobación resolución de reactivación de beca educativa | C79: 480 | D79: 30
A80: SENESCYT-044-02-03 | B80: Aprobación resolución a la solicitud de terminación de contrato de becas | C80: 480 | D80: 30
A81: SENESCYT-044-02-04 | B81: Aprobación resolución a la solicitud de suspensión temporal de estudios para beneficiarios de becas | C81: 480 | D81: 30
A82: SENESCYT-045-01-01 | B82: Emisión de certificado de ser beneficiario de becas nacionales e internacionales | C82: 0.08 | D82: 0
A83: SENESCYT-045-02-01 | B83: Atención a la solicitud de apelación al resultado de la postulación de becas nacionales e internacionales | C83: 360 | D83: 30

Sheet CANAL ATENCIÓN
A1: PRIORIZACIÓN DE TRÁMITES ADMINISTRATIVOS
A2: CANAL DE ATENCIÓN
I3: Totalmente en Línea | L3: 0
A4: IDENTIFICADOR | B4: TRÁMITE | C4: CANAL ATENCIÓN | D4: PUNTUACIÓN | I4: No se completa totalmente en línea. | L4: 10
A5: SENESCYT-001-01-01 | B5: Registro de carreras y programas en estado no vigente y de cuarto nivel | C5: Totalmente en Línea | D5: 0
A6: SENESCYT-001-02-01 | B6: Registro de títulos históricos | C6: Totalmente en Línea | D6: 0
A7: SENESCYT-002-01-01 | B7: Reconocimiento general de títulos del extranjero | C7: No se completa totalmente en línea. | D7: 10
A8: SENESCYT-002-01-02 | B8: Reconocimiento de títulos profesionales o grados académicos en el campo de la salud | C8: No se completa totalmente en línea. | D8: 10
A9: SENESCYT-002-01-03 | B9: Reconocimiento de títulos doctorales del extrajero (PhD.) | C9: No se completa totalmente en línea. | D9: 10
A10: SENESCYT-003-01-01 | B10: Certificación de acreditación de las instituciones de educación superior nacionales | C10: Totalmente en Línea | D10: 0
A11: SENESCYT-004-01-01 | B11: Modificación de registro de títulos nacionales de Instituciones de Educación Superior cerradas | C11: Totalmente en Línea | D11: 0
A12: SENESCYT-004-01-02 | B12: Modificación del nivel de formación de los títulos de tecnólogos médicos al tercer nivel y de doctores al cuarto nivel | C12: Totalmente en Línea | D12: 0
A13: SENESCYT-004-02-01 | B13: Modificación de registro de títulos extranjero para PhD | C13: Totalmente en Línea | D13: 0
A14: SENESCYT-004-02-02 | B14: Modificación de registro de títulos extranjero de títulos propios | C14: Totalmente en Línea | D14: 0
A15: SENESCYT-004-02-03 | B15: Modificación de registro de títulos extranjero de campos de información académica general | C15: Totalmente en Línea | D15: 0
A16: SENESCYT-004-02-04 | B16: Modificación de registro de títulos extranjero de campos de información personal | C16: Totalmente en Línea | D16: 0
A17: SENESCYT-005-01-01 | B17: Anulaciones de registro de títulos nacionales | C17: Totalmente en Línea | D17: 0
A18: SENESCYT-005-02-01 | B18: Anulaciones de registro de títulos del extranjero | C18: Totalmente en Línea | D18: 0
A19: SENESCYT-006-01-01 | B19: Modificación de datos de carreras y programas de estudio | C19: Totalmente en Línea | D19: 0
A20: SENESCYT-007-01-01 | B20: Exoneración de derechos aduaneros para instituciones de educación superior | C20: Totalmente en Línea | D20: 0
A21: SENESCYT-008-01-01 | B21: Evaluación de IES extranjeras para inclusión o exclusión en el listado | C21: Totalmente en Línea | D21: 0
A22: SENESCYT-009-01-01 | B22: Hojas de vida de becarios para procesos de selección | C22: Totalmente en Línea | D22: 0
A23: SENESCYT-010-01-01 | B23: Vinculación de becarios a la plataforma de transferencia del conocimiento "Ensamble" | C23: Totalmente en Línea | D23: 0
A24: SENESCYT-010-02-01 | B24: Registro de empresas públicas y privadas en la plataforma de transferencia del conocimiento "Ensamble" | C24: Totalmente en Línea | D24: 0
A25: SENESCYT-011-01-01 | B25: Acreditación de investigadores/as científicos/as | C25: Totalmente en Línea | D25: 0
A26: SENESCYT-012-01-01 | B26: Categorización como Investigador Principal 4 | C26: Totalmente en Línea | D26: 0
A27: SENESCYT-012-01-02 | B27: Categorización como Investigador Principal 3 | C27: Totalmente en Línea | D27: 0
A28: SENESCYT-012-01-03 | B28: Categorización como Investigador Principal 2 | C28: Totalmente en Línea | D28: 0
A29: SENESCYT-012-01-04 | B29: Categorización como Investigador Agregado 3 | C29: Totalmente en Línea | D29: 0
A30: SENESCYT-012-01-05 | B30: Categorización como Investigador Agregado 2 | C30: Totalmente en Línea | D30: 0
A31: SENESCYT-012-01-06 | B31: Categorización como Investigador Agregado 1 | C31: Totalmente en Línea | D31: 0
A32: SENESCYT-012-01-07 | B32: Categorización como Investigador Auxiliar 2 | C32: Totalmente en Línea | D32: 0
A33: SENESCYT-012-01-08 | B33: Categorización como Investigador Auxiliar 1 | C33: Totalmente en Línea | D33: 0
A34: SENESCYT-012-01-09 | B34: Categorización como Investigador Principal 1 | C34: Totalmente en Línea | D34: 0
A35: SENESCYT-013-01-01 | B35: Asignación del código ISSN (International Standard Serial Number) | C35: Totalmente en Línea | D35: 0
A36: SENESCYT-013-01-02 | B36: Actualización de información del código ISSN | C36: Totalmente en Línea | D36: 0
A37: SENESCYT-014-01-01 | B37: Evaluación o revaluación Latindex para publicaciones científicas | C37: Totalmente en Línea | D37: 0
A38: SENESCYT-014-01-02 | B38: Actualización de información de la publicación Latindex | C38: Totalmente en Línea | D38: 0
A39: SENESCYT-017-01-01 | B39: Postulación de proyectos innovadores y la asignación de capital semilla | C39: Totalmente en Línea | D39: 0
A40: SENESCYT-018-01-01 | B40: Acreditación de espacios y agentes de innovación | C40: Totalmente en Línea | D40: 0
A41: SENESCYT-019-01-01 | B41: Registro de espacios de trabajo colaborativo | C41: Totalmente en Línea | D41: 0
A42: SENESCYT-020-01-01 | B42: Obtención de cupos para el acceso a la educación superior para ecuatorianos residentes y no residentes en el país y para extranjeros residentes en el país | C42: Totalmente en Línea | D42: 0
A43: SENESCYT-021-01-01 | B43: Certificado de notas obtenidas en el examen para el acceso a la educación superior | C43: Totalmente en Línea | D43: 0
A44: SENESCYT-021-01-02 | B44: Certificado de haber aceptado o no haber aceptado un cupo en el Sistema Nacional de Nivelación y Admisión | C44: Totalmente en Línea | D44: 0
A45: SENESCYT-021-01-03 | B45: Certificado de pertenencia al grupo de alto rendimiento (GAR) programa internacional | C45: Totalmente en Línea | D45: 0
A46: SENESCYT-022-01-01 | B46: Habilitación de cuenta en plataforma "Ser Bachiller" | C46: Totalmente en Línea | D46: 0
A47: SENESCYT-022-01-02 | B47: Habilitación de nota en plataforma "Ser Bachiller" | C47: Totalmente en Línea | D47: 0
A48: SENESCYT-023-01-01 | B48: Inscripción para el acceso a la nivelación general | C48: Totalmente en Línea | D48: 0
A49: SENESCYT-024-01-01 | B49: Emisión de títulos de formación técnica y tecnológica de instituciones públicas o particulares | C49: Totalmente en Línea | D49: 0
A50: SENESCYT-024-01-02 | B50: Certificado de títulos en proceso de emisión de formación técnica y tecnológica de instituciones públicas o particulares | C50: Totalmente en Línea | D50: 0
A51: SENESCYT-025-01-01 | B51: Creación de credenciales para Instituciones de Educación Superior (IES) | C51: Totalmente en Línea | D51: 0
A52: SENESCYT-025-01-02 | B52: Actualización de datos generales para el registro de firmas de las autoridades de las Instituciones de Educación Superior. | C52: Totalmente en Línea | D52: 0
A53: SENESCYT-026-01-01 | B53: Atención de solicitudes de acceso a la información pública referente a la educación superior, la ciencia, tecnología e innovación | C53: Totalmente en Línea | D53: 0
A54: SENESCYT-027-01-01 | B54: Registro de Redes del Sistema de Educación Superior y del Sistema Nacional de Ciencia, Tecnología, Innovación y Saberes Ancestrales | C54: Totalmente en Línea | D54: 0
A55: SENESCYT-028-01-01 | B55: Registro de personas naturales relacionadas a la investigación y/o desarrollo tecnológico | C55: Totalmente en Línea | D55: 0
A56: SENESCYT-034-01-01 | B56: Aprobación de liquidación de becas nacionales e internacionales | C56: Totalmente en Línea | D56: 0
A57: SENESCYT-034-01-02 | B57: Aprobación de facilidades de pago a valores adeudados para beneficiarios de becas educativas | C57: Totalmente en Línea | D57: 0
A58: SENESCYT-035-01-01 | B58: Autorización de registro de compensación becas internacionales y administración becas otorgadas por el ministerio de salud pública | C58: Totalmente en Línea | D58: 0
A59: SENESCYT-035-01-02 | B59: Autorización de cambio o liberación de la entidad auspiciante de becas internacionales | C59: No se completa totalmente en línea. | D59: 10
A60: SENESCYT-035-01-03 | B60: Autorización de diferimiento del período de compensación de becas | C60: No se completa totalmente en línea. | D60: 10
A61: SENESCYT-035-01-04 | B61: Autorización de cambio de período de compensación y otros tipos de compensación para beneficiarios de becas educativas | C61: No se completa totalmente en línea. | D61: 10
A62: SENESCYT-035-01-05 | B62: Autorización de prórroga de plazo para ejecución de proyecto para beneficiarios de becas | C62: No se completa totalmente en línea. | D62: 10
A63: SENESCYT-036-01-01 | B63: Aprobación de facilidades de pago en etapa coactiva | C63: No se completa totalmente en línea. | D63: 10
A64: SENESCYT-037-01-01 | B64: Emisión de certificados relacionados con crédito educativo | C64: Totalmente en Línea | D64: 0
A65: SENESCYT-037-01-02 | B65: Otorgamiento de información académica de crédito educativo | C65: Totalmente en Línea | D65: 0
A66: SENESCYT-038-01-01 | B66: Emisión de reportes académicos de crédito educativo | C66: Totalmente en Línea | D66: 0
A67: SENESCYT-039-01-01 | B67: Aprobación de desembolso, reembolso o adelanto de desembolso de crédito educativo | C67: Totalmente en Línea | D67: 0
A68: SENESCYT-040-01-01 | B68: Otorgamiento de prórroga académica por crédito educativo | C68: Totalmente en Línea | D68: 0
A69: SENESCYT-040-01-02 | B69: Aprobación resolución de actualización de datos de la persona beneficiaria de crédito educativo | C69: Totalmente en Línea | D69: 0
A70: SENESCYT-040-01-03 | B70: Aprobación resolución de suspensión de desembolsos de crédito educativo | C70: Totalmente en Línea | D70: 0
A71: SENESCYT-040-01-04 | B71: Aprobación resolución de terminación del contrato de crédito educativo | C71: Totalmente en Línea | D71: 0
A72: SENESCYT-041-01-01 | B72: Aprobación de legalización de contrato de becas nacionales e internacionales | C72: No se completa totalmente en línea. | D72: 10
A73: SENESCYT-042-01-01 | B73: Aprobación de postulación a becas nacionales e internacionales | C73: Totalmente en Línea | D73: 0
A74: SENESCYT-043-01-01 | B74: Autorización de desembolso de becas nacionales e internacionales a partir de segundo pago | C74: Totalmente en Línea | D74: 0
A75: SENESCYT-044-01-01 | B75: Aprobación de cambio de condiciones contractuales de beca nacional o internacional | C75: No se completa totalmente en línea. | D75: 10
A76: SENESCYT-044-01-02 | B76: Autorización de cambio de condiciones contractuales antes de la firma de beca | C76: No se completa totalmente en línea. | D76: 10
A77: SENESCYT-044-01-03 | B77: Aprobación de resolución a la solicitud de renuncia a la beca educativa (contrato suscrito sin desembolsos) | C77: Totalmente en Línea | D77: 0
A78: SENESCYT-044-02-01 | B78: Autorización de prórroga de plazo de estudios para beneficiarios de becas educativas | C78: No se completa totalmente en línea. | D78: 10
A79: SENESCYT-044-02-02 | B79: Aprobación resolución de reactivación de beca educativa | C79: No se completa totalmente en línea. | D79: 10
A80: SENESCYT-044-02-03 | B80: Aprobación resolución a la solicitud de terminación de contrato de becas | C80: Totalmente en Línea | D80: 0
A81: SENESCYT-044-02-04 | B81: Aprobación resolución a la solicitud de suspensión temporal de estudios para beneficiarios de becas | C81: No se completa totalmente en línea. | D81: 10
A82: SENESCYT-045-01-01 | B82: Emisión de certificado de ser beneficiario de becas nacionales e internacionales | C82: Totalmente en Línea | D82: 0
A83: SENESCYT-045-02-01 | B83: Atención a la solicitud de apelación al resultado de la postulación de becas nacionales e internacionales | C83: No se completa totalmente en línea. | D83: 10

Sheet RESUMEN
C1: BÁSICOS | H1: ADICIONALES
A2: ID trámite | B2: Nombre del trámite | C2: Demanda | D2: Quejas | E2: Costo para administración | F2: Tiempo de respuesta | G2: Canal de atención | H2: Necesidades ciudadanas | J2: Susceptibilidad a corrupción | L2: Volumen de devoluciones | N2: PUNTAJE TOTAL
H3: Criterio | I3: Puntuación | J3: Criterio | K3: Puntuación | L3: Criterio | M3: Puntuación | U3: demanda | V3: 0 | W3: 3 | X3: 6 | Y3: 10
A4: SENESCYT-001-01-01 | B4: Registro de carreras y programas en estado no vigente y de cuarto nivel | C4: 3 | D4: 0 | E4: 5 | F4: 30 | G4: 0 | H4: NO | I4: =IF(H4="SI",20,0) -> 0 | J4: NO | K4: =IF(J4="SI",20,0) -> 0 | L4: NO | M4: =IF(L4="SI",20,0) -> 0 | N4: =SUM(C4+D4+E4+F4+G4+I4+K4+M4) -> 38 | U4: quejas | V4: 0 | W4: 4 | X4: 10
A5: SENESCYT-001-02-01 | B5: Registro de títulos históricos | C5: 6 | D5: 10 | E5: 5 | F5: 30 | G5: 0 | H5: NO | I5: 0 | J5: NO | K5: 0 | L5: NO | M5: 0 | N5: =SUM(C5+D5+E5+F5+G5+I5+K5+M5) -> 51 | U5: cpa | V5: 5 | W5: 10 | X5: 20
A6: SENESCYT-002-01-01 | B6: Reconocimiento general de títulos del extranjero | C6: 10 | D6: 10 | E6: 5 | F6: 30 | G6: 10 | H6: NO | I6: 0 | J6: NO | K6: 0 | L6: NO | M6: 0 | N6: 65 | U6: tr | V6: 0 | W6: 30
A7: SENESCYT-002-01-02 | B7: Reconocimiento de títulos profesionales o grados académicos en el campo de la salud | C7: 10 | D7: 4 | E7: 5 | F7: 30 | G7: 10 | H7: NO | I7: 0 | J7: NO | K7: 0 | L7: NO | M7: 0 | N7: 59 | U7: ca | V7: 0 | W7: 10
A8: SENESCYT-002-01-03 | B8: Reconocimiento de títulos doctorales del extrajero (PhD.) | C8: 10 | D8: 4 | E8: 5 | F8: 30 | G8: 10 | H8: NO | I8: 0 | J8: NO | K8: 0 | L8: NO | M8: 0 | N8: 59 | V8: SI | W8: NO
A9: SENESCYT-003-01-01 | B9: Certificación de acreditación de las instituciones de educación superior nacionales | C9: 10 | D9: 4 | E9: 0 | F9: 0 | G9: 0 | H9: NO | I9: 0 | J9: NO | K9: 0 | L9: NO | M9: 0 | N9: 14
A10: SENESCYT-004-01-01 | B10: Modificación de registro de títulos nacionales de Instituciones de Educación Superior cerradas | C10: 3 | D10: 10 | E10: 5 | F10: 30 | G10: 0 | H10: NO | I10: 0 | J10: NO | K10: 0 | L10: NO | M10: 0 | N10: 48
A11: SENESCYT-004-01-02 | B11: Modificación del nivel de formación de los títulos de tecnólogos médicos al tercer nivel y de doctores al cuarto nivel | C11: 3 | D11: 10 | E11: 10 | F11: 30 | G11: 0 | H11: NO | I11: 0 | J11: NO | K11: 0 | L11: NO | M11: 0 | N11: 53
A12: SENESCYT-004-02-01 | B12: Modificación de registro de títulos extranjero para PhD | C12: 3 | D12: 0 | E12: 10 | F12: 30 | G12: 0 | H12: NO | I12: 0 | J12: NO | K12: 0 | L12: NO | M12: 0 | N12: 43
A13: SENESCYT-004-02-02 | B13: Modificación de registro de títulos extranjero de títulos propios | C13: 6 | D13: 0 | E13: 5 | F13: 30 | G13: 0 | H13: NO | I13: 0 | J13: NO | K13: 0 | L13: NO | M13: 0 | N13: 41
A14: SENESCYT-004-02-03 | B14: Modificación de registro de títulos extranjero de campos de información académica general | C14: 6 | D14: 10 | E14: 5 | F14: 30 | G14: 0 | H14: NO | I14: 0 | J14: NO | K14: 0 | L14: NO | M14: 0 | N14: 51
A15: SENESCYT-004-02-04 | B15: Modificación de registro de títulos extranjero de campos de información personal | C15: 10 | D15: 10 | E15: 5 | F15: 30 | G15: 0 | H15: NO | I15: 0 | J15: NO | K15: 0 | L15: NO | M15: 0 | N15: 55
A16: SENESCYT-005-01-01 | B16: Anulaciones de registro de títulos nacionales | C16: 6 | D16: 10 | E16: 10 | F16: 30 | G16: 0 | H16: NO | I16: 0 | J16: NO | K16: 0 | L16: NO | M16: 0 | N16: 56
A17: SENESCYT-005-02-01 | B17: Anulaciones de registro de títulos del extranjero | C17: 3 | D17: 0 | E17: 20 | F17: 30 | G17: 0 | H17: NO | I17: 0 | J17: NO | K17: 0 | L17: NO | M17: 0 | N17: 53
A18: SENESCYT-006-01-01 | B18: Modificación de datos de carreras y programas de estudio | C18: 3 | D18: 10 | E18: 20 | F18: 30 | G18: 0 | H18: NO | I18: 0 | J18: NO | K18: 0 | L18: NO | M18: 0 | N18: 63
A19: SENESCYT-007-01-01 | B19: Exoneración de derechos aduaneros para instituciones de educación superior | C19: 3 | D19: 0 | E19: 20 | F19: 30 | G19: 0 | H19: NO | I19: 0 | J19: NO | K19: 0 | L19: NO | M19: 0 | N19: 53
A20: SENESCYT-008-01-01 | B20: Evaluación de IES extranjeras para inclusión o exclusión en el listado | C20: 3 | D20: 10 | E20: 20 | F20: 30 | G20: 0 | H20: NO | I20: 0 | J20: NO | K20: 0 | L20: NO | M20: 0 | N20: 63
A21: SENESCYT-009-01-01 | B21: Hojas de vida de becarios para procesos de selección | C21: 10 | D21: 4 | E21: 5 | F21: 30 | G21: 0 | H21: NO | I21: 0 | J21: NO | K21: 0 | L21: NO | M21: 0 | N21: 49
A22: SENESCYT-010-01-01 | B22: Vinculación de becarios a la plataforma de transferencia del conocimiento "Ensamble" | C22: 10 | D22: 0 | E22: 5 | F22: 0 | G22: 0 | H22: NO | I22: 0 | J22: NO | K22: 0 | L22: NO | M22: 0 | N22: 15
A23: SENESCYT-010-02-01 | B23: Registro de empresas públicas y privadas en la plataforma de transferencia del conocimiento "Ensamble" | C23: 6 | D23: 0 | E23: 5 | F23: 0 | G23: 0 | H23: NO | I23: 0 | J23: NO | K23: 0 | L23: NO | M23: 0 | N23: 11
A24: SENESCYT-011-01-01 | B24: Acreditación de investigadores/as científicos/as | C24: 10 | D24: 4 | E24: 20 | F24: 30 | G24: 0 | H24: NO | I24: 0 | J24: NO | K24: 0 | L24: NO | M24: 0 | N24: 64
A25: SENESCYT-012-01-01 | B25: Categorización como Investigador Principal 4 | C25: 3 | D25: 0 | E25: 20 | F25: 30 | G25: 0 | H25: NO | I25: 0 | J25: NO | K25: 0 | L25: NO | M25: 0 | N25: 53
A26: SENESCYT-012-01-02 | B26: Categorización como Investigador Principal 3 | C26: 3 | D26: 0 | E26: 20 | F26: 30 | G26: 0 | H26: NO | I26: 0 | J26: NO | K26: 0 | L26: NO | M26: 0 | N26: 53
A27: SENESCYT-012-01-03 | B27: Categorización como Investigador Principal 2 | C27: 3 | D27: 0 | E27: 20 | F27: 30 | G27: 0 | H27: NO | I27: 0 | J27: NO | K27: 0 | L27: NO | M27: 0 | N27: 53
A28: SENESCYT-012-01-04 | B28: Categorización como Investigador Agregado 3 | C28: 0 | D28: 0 | E28: 20 | F28: 30 | G28: 0 | H28: NO | I28: 0 | J28: NO | K28: 0 | L28: NO | M28: 0 | N28: 50
A29: SENESCYT-012-01-05 | B29: Categorización como Investigador Agregado 2 | C29: 6 | D29: 0 | E29: 20 | F29: 30 | G29: 0 | H29: NO | I29: 0 | J29: NO | K29: 0 | L29: NO | M29: 0 | N29: 56
A30: SENESCYT-012-01-06 | B30: Categorización como Investigador Agregado 1 | C30: 6 | D30: 0 | E30: 20 | F30: 30 | G30: 0 | H30: NO | I30: 0 | J30: NO | K30: 0 | L30: NO | M30: 0 | N30: 56
A31: SENESCYT-012-01-07 | B31: Categorización como Investigador Auxiliar 2 | C31: 6 | D31: 0 | E31: 20 | F31: 30 | G31: 0 | H31: NO | I31: 0 | J31: NO | K31: 0 | L31: NO | M31: 0 | N31: 56
A32: SENESCYT-012-01-08 | B32: Categorización como Investigador Auxiliar 1 | C32: 6 | D32: 0 | E32: 20 | F32: 30 | G32: 0 | H32: NO | I32: 0 | J32: NO | K32: 0 | L32: NO | M32: 0 | N32: 56
A33: SENESCYT-012-01-09 | B33: Categorización como Investigador Principal 1 | C33: 3 | D33: 0 | E33: 20 | F33: 30 | G33: 0 | H33: NO | I33: 0 | J33: NO | K33: 0 | L33: NO | M33: 0 | N33: 53
A34: SENESCYT-013-01-01 | B34: Asignación del código ISSN (International Standard Serial Number) | C34: 6 | D34: 0 | E34: 10 | F34: 30 | G34: 0 | H34: NO | I34: 0 | J34: NO | K34: 0 | L34: NO | M34: 0 | N34: 46
A35: SENESCYT-013-01-02 | B35: Actualización de información del código ISSN | C35: 6 | D35: 0 | E35: 20 | F35: 30 | G35: 0 | H35: NO | I35: 0 | J35: NO | K35: 0 | L35: NO | M35: 0 | N35: 56
A36: SENESCYT-014-01-01 | B36: Evaluación o revaluación Latindex para publicaciones científicas | C36: 6 | D36: 0 | E36: 10 | F36: 30 | G36: 0 | H36: NO | I36: 0 | J36: NO | K36: 0 | L36: NO | M36: 0 | N36: 46
A37: SENESCYT-014-01-02 | B37: Actualización de información de la publicación Latindex | C37: 6 | D37: 0 | E37: 20 | F37: 30 | G37: 0 | H37: NO | I37: 0 | J37: NO | K37: 0 | L37: NO | M37: 0 | N37: 56
A38: SENESCYT-017-01-01 | B38: Postulación de proyectos innovadores y la asignación de capital semilla | C38: 0 | D38: 0 | E38: 20 | F38: 30 | G38: 0 | H38: NO | I38: 0 | J38: NO | K38: 0 | L38: NO | M38: 0 | N38: 50
A39: SENESCYT-018-01-01 | B39: Acreditación de espacios y agentes de innovación | C39: 6 | D39: 10 | E39: 5 | F39: 30 | G39: 0 | H39: NO | I39: 0 | J39: NO | K39: 0 | L39: NO | M39: 0 | N39: 51
A40: SENESCYT-019-01-01 | B40: Registro de espacios de trabajo colaborativo | C40: 3 | D40: 0 | E40: 5 | F40: 30 | G40: 0 | H40: NO | I40: 0 | J40: NO | K40: 0 | L40: NO | M40: 0 | N40: 38
A41: SENESCYT-020-01-01 | B41: Obtención de cupos para el acceso a la educación superior para ecuatorianos residentes y no residentes en el país y para extranjeros residentes en el país | C41: 10 | D41: 4 | E41: 20 | F41: 30 | G41: 0 | H41: NO | I41: 0 | J41: NO | K41: 0 | L41: NO | M41: 0 | N41: 64
A42: SENESCYT-021-01-01 | B42: Certificado de notas obtenidas en el examen para el acceso a la educación superior | C42: 10 | D42: 4 | E42: 0 | F42: 0 | G42: 0 | H42: NO | I42: 0 | J42: NO | K42: 0 | L42: NO | M42: 0 | N42: 14
A43: SENESCYT-021-01-02 | B43: Certificado de haber aceptado o no haber aceptado un cupo en el Sistema Nacional de Nivelación y Admisión | C43: 10 | D43: 4 | E43: 0 | F43: 0 | G43: 0 | H43: NO | I43: 0 | J43: NO | K43: 0 | L43: NO | M43: 0 | N43: 14
A44: SENESCYT-021-01-03 | B44: Certificado de pertenencia al grupo de alto rendimiento (GAR) programa internacional | C44: 3 | D44: 0 | E44: 5 | F44: 0 | G44: 0 | H44: NO | I44: 0 | J44: NO | K44: 0 | L44: NO | M44: 0 | N44: 8
A45: SENESCYT-022-01-01 | B45: Habilitación de cuenta en plataforma "Ser Bachiller" | C45: 10 | D45: 4 | E45: 5 | F45: 30 | G45: 0 | H45: NO | I45: 0 | J45: NO | K45: 0 | L45: NO | M45: 0 | N45: 49
A46: SENESCYT-022-01-02 | B46: Habilitación de nota en plataforma "Ser Bachiller" | C46: 10 | D46: 4 | E46: 5 | F46: 30 | G46: 0 | H46: NO | I46: 0 | J46: NO | K46: 0 | L46: NO | M46: 0 | N46: 49
A47: SENESCYT-023-01-01 | B47: Inscripción para el acceso a la nivelación general | C47: 0 | D47: 0 | E47: 0 | F47: 0 | G47: 0 | H47: NO | I47: 0 | J47: NO | K47: 0 | L47: NO | M47: 0 | N47: 0
A48: SENESCYT-024-01-01 | B48: Emisión de títulos de formación técnica y tecnológica de instituciones públicas o particulares | C48: 3 | D48: 10 | E48: 10 | F48: 30 | G48: 0 | H48: NO | I48: 0 | J48: NO | K48: 0 | L48: NO | M48: 0 | N48: 53
A49: SENESCYT-024-01-02 | B49: Certificado de títulos en proceso de emisión de formación técnica y tecnológica de instituciones públicas o particulares | C49: 10 | D49: 0 | E49: 5 | F49: 30 | G49: 0 | H49: NO | I49: 0 | J49: NO | K49: 0 | L49: NO | M49: 0 | N49: 45
A50: SENESCYT-025-01-01 | B50: Creación de credenciales para Instituciones de Educación Superior (IES) | C50: 6 | D50: 0 | E50: 20 | F50: 30 | G50: 0 | H50: NO | I50: 0 | J50: NO | K50: 0 | L50: NO | M50: 0 | N50: 56
A51: SENESCYT-025-01-02 | B51: Actualización de datos generales para el registro de firmas de las autoridades de las Instituciones de Educación Superior. | C51: 6 | D51: 0 | E51: 10 | F51: 0 | G51: 0 | H51: NO | I51: 0 | J51: NO | K51: 0 | L51: NO | M51: 0 | N51: 16
A52: SENESCYT-026-01-01 | B52: Atención de solicitudes de acceso a la información pública referente a la educación superior, la ciencia, tecnología e innovación | C52: 6 | D52: 10 | E52: 5 | F52: 30 | G52: 0 | H52: NO | I52: 0 | J52: NO | K52: 0 | L52: NO | M52: 0 | N52: 51
A53: SENESCYT-027-01-01 | B53: Registro de Redes del Sistema de Educación Superior y del Sistema Nacional de Ciencia, Tecnología, Innovación y Saberes Ancestrales | C53: 6 | D53: 0 | E53: 5 | F53: 0 | G53: 0 | H53: NO | I53: 0 | J53: NO | K53: 0 | L53: NO | M53: 0 | N53: 11
A54: SENESCYT-028-01-01 | B54: Registro de personas naturales relacionadas a la investigación y/o desarrollo tecnológico | C54: 10 | D54: 0 | E54: 20 | F54: 30 | G54: 0 | H54: NO | I54: 0 | J54: NO | K54: 0 | L54: NO | M54: 0 | N54: 60
A55: SENESCYT-034-01-01 | B55: Aprobación de liquidación de becas nacionales e internacionales | C55: 10 | D55: 4 | E55: 10 | F55: 30 | G55: 0 | H55: NO | I55: =IF(H55="SI",20,0) -> 0 | J55: NO | K55: =IF(J55="SI",20,0) -> 0 | L55: NO | M55: =IF(L55="SI",20,0) -> 0 | N55: 54
A56: SENESCYT-034-01-02 | B56: Aprobación de facilidades de pago a valores adeudados para beneficiarios de becas educativas | C56: 3 | D56: 10 | E56: 5 | F56: 30 | G56: 0 | H56: NO | I56: 0 | J56: NO | K56: 0 | L56: NO | M56: 0 | N56: 48
A57: SENESCYT-035-01-01 | B57: Autorización de registro de compensación becas internacionales y administración becas otorgadas por el ministerio de salud pública | C57: 10 | D57: 0 | E57: 5 | F57: 30 | G57: 0 | H57: NO | I57: 0 | J57: NO | K57: 0 | L57: NO | M57: 0 | N57: 45
A58: SENESCYT-035-01-02 | B58: Autorización de cambio o liberación de la entidad auspiciante de becas internacionales | C58: 3 | D58: 0 | E58: 10 | F58: 30 | G58: 10 | H58: NO | I58: 0 | J58: NO | K58: 0 | L58: NO | M58: 0 | N58: 53
A59: SENESCYT-035-01-03 | B59: Autorización de diferimiento del período de compensación de becas | C59: 6 | D59: 0 | E59: 10 | F59: 30 | G59: 10 | H59: NO | I59: 0 | J59: NO | K59: 0 | L59: NO | M59: 0 | N59: 56
A60: SENESCYT-035-01-04 | B60: Autorización de cambio de período de compensación y otros tipos de compensación para beneficiarios de becas educativas | C60: 6 | D60: 0 | E60: 10 | F60: 30 | G60: 10 | H60: NO | I60: 0 | J60: NO | K60: 0 | L60: NO | M60: 0 | N60: 56
A61: SENESCYT-035-01-05 | B61: Autorización de prórroga de plazo para ejecución de proyecto para beneficiarios de becas | C61: 0 | D61: 0 | E61: 10 | F61: 30 | G61: 10 | H61: NO | I61: 0 | J61: NO | K61: 0 | L61: NO | M61: 0 | N61: 50
A62: SENESCYT-036-01-01 | B62: Aprobación de facilidades de pago en etapa coactiva | C62: 10 | D62: 0 | E62: 5 | F62: 0 | G62: 10 | H62: NO | I62: 0 | J62: NO | K62: 0 | L62: NO | M62: 0 | N62: 25
A63: SENESCYT-037-01-01 | B63: Emisión de certificados relacionados con crédito educativo | C63: 10 | D63: 0 | E63: 0 | F63: 0 | G63: 0 | H63: NO | I63: 0 | J63: NO | K63: 0 | L63: NO | M63: 0 | N63: 10
A64: SENESCYT-037-01-02 | B64: Otorgamiento de información académica de crédito educativo | C64: 10 | D64: 0 | E64: 5 | F64: 0 | G64: 0 | H64: NO | I64: 0 | J64: NO | K64: 0 | L64: NO | M64: 0 | N64: 15
A65: SENESCYT-038-01-01 | B65: Emisión de reportes académicos de crédito educativo | C65: 10 | D65: 0 | E65: 5 | F65: 0 | G65: 0 | H65: NO | I65: 0 | J65: NO | K65: 0 | L65: NO | M65: 0 | N65: 15
A66: SENESCYT-039-01-01 | B66: Aprobación de desembolso, reembolso o adelanto de desembolso de crédito educativo | C66: 6 | D66: 10 | E66: 5 | F66: 0 | G66: 0 | H66: NO | I66: 0 | J66: NO | K66: 0 | L66: NO | M66: 0 | N66: 21
A67: SENESCYT-040-01-01 | B67: Otorgamiento de prórroga académica por crédito educativo | C67: 3 | D67: 0 | E67: 5 | F67: 0 | G67: 0 | H67: NO | I67: 0 | J67: NO | K67: 0 | L67: NO | M67: 0 | N67: 8
A68: SENESCYT-040-01-02 | B68: Aprobación resolución de actualización de datos de la persona beneficiaria de crédito educativo | C68: 0 | D68: 0 | E68: 5 | F68: 0 | G68: 0 | H68: NO | I68: 0 | J68: NO | K68: 0 | L68: NO | M68: 0 | N68: 5
A69: SENESCYT-040-01-03 | B69: Aprobación resolución de suspensión de desembolsos de crédito educativo | C69: 3 | D69: 0 | E69: 5 | F69: 30 | G69: 0 | H69: NO | I69: 0 | J69: NO | K69: 0 | L69: NO | M69: 0 | N69: =SUM(C69+D69+E69+F69+G69+I69+K69+M69) -> 38
A70: SENESCYT-040-01-04 | B70: Aprobación resolución de terminación del contrato de crédito educativo | C70: 6 | D70: 0 | E70: 5 | F70: 0 | G70: 0 | H70: NO | I70: 0 | J70: NO | K70: 0 | L70: NO | M70: 0 | N70: 11
A71: SENESCYT-041-01-01 | B71: Aprobación de legalización de contrato de becas nacionales e internacionales | C71: 10 | D71: 0 | E71: 5 | F71: 0 | G71: 10 | H71: NO | I71: 0 | J71: NO | K71: 0 | L71: NO | M71: 0 | N71: 25
A72: SENESCYT-042-01-01 | B72: Aprobación de postulación a becas nacionales e internacionales | C72: 10 | D72: 4 | E72: 10 | F72: 30 | G72: 0 | H72: NO | I72: 0 | J72: NO | K72: 0 | L72: NO | M72: 0 | N72: 54
A73: SENESCYT-043-01-01 | B73: Autorización de desembolso de becas nacionales e internacionales a partir de segundo pago | C73: 10 | D73: 0 | E73: 5 | F73: 30 | G73: 0 | H73: NO | I73: 0 | J73: NO | K73: 0 | L73: NO | M73: 0 | N73: 45
A74: SENESCYT-044-01-01 | B74: Aprobación de cambio de condiciones contractuales de beca nacional o internacional | C74: 6 | D74: 0 | E74: 10 | F74: 30 | G74: 10 | H74: NO | I74: 0 | J74: NO | K74: 0 | L74: NO | M74: 0 | N74: 56
A75: SENESCYT-044-01-02 | B75: Autorización de cambio de condiciones contractuales antes de la firma de beca | C75: 3 | D75: 0 | E75: 10 | F75: 30 | G75: 10 | H75: NO | I75: 0 | J75: NO | K75: 0 | L75: NO | M75: 0 | N75: 53
A76: SENESCYT-044-01-03 | B76: Aprobación de resolución a la solicitud de renuncia a la beca educativa (contrato suscrito sin desembolsos) | C76: 3 | D76: 0 | E76: 5 | F76: 30 | G76: 0 | H76: NO | I76: 0 | J76: NO | K76: 0 | L76: NO | M76: 0 | N76: 38
A77: SENESCYT-044-02-01 | B77: Autorización de prórroga de plazo de estudios para beneficiarios de becas educativas | C77: 6 | D77: 0 | E77: 10 | F77: 30 | G77: 10 | H77: NO | I77: 0 | J77: NO | K77: 0 | L77: NO | M77: 0 | N77: 56
A78: SENESCYT-044-02-02 | B78: Aprobación resolución de reactivación de beca educativa | C78: 3 | D78: 0 | E78: 10 | F78: 30 | G78: 10 | H78: NO | I78: 0 | J78: NO | K78: 0 | L78: NO | M78: 0 | N78: 53
A79: SENESCYT-044-02-03 | B79: Aprobación resolución a la solicitud de terminación de contrato de becas | C79: 3 | D79: 0 | E79: 5 | F79: 30 | G79: 0 | H79: NO | I79: 0 | J79: NO | K79: 0 | L79: NO | M79: 0 | N79: 38
A80: SENESCYT-044-02-04 | B80: Aprobación resolución a la solicitud de suspensión temporal de estudios para beneficiarios de becas | C80: 3 | D80: 0 | E80: 10 | F80: 30 | G80: 10 | H80: NO | I80: 0 | J80: NO | K80: 0 | L80: NO | M80: 0 | N80: 53
A81: SENESCYT-045-01-01 | B81: Emisión de certificado de ser beneficiario de becas nacionales e internacionales | C81: 10 | D81: 0 | E81: 0 | F81: 0 | G81: 0 | H81: NO | I81: 0 | J81: NO | K81: 0 | L81: NO | M81: 0 | N81: 10
A82: SENESCYT-045-02-01 | B82: Atención a la solicitud de apelación al resultado de la postulación de becas nacionales e internacionales | C82: 0 | D82: 0 | E82: 5 | F82: 30 | G82: 10 | H82: NO | I82: 0 | J82: NO | K82: 0 | L82: NO | M82: 0 | N82: 45
